{"text_format":"1","workbook":"xlsx","n_sheets":2,"sheets":["Modelo Atmosférico","Leitura Dados de Vôo"],"not_rendered":{"charts":1,"images":1,"macros":1,"external_links":0,"defined_names":104,"comments":0,"pivot_tables":0},"unopened":[],"bounds":{"document_bytes":16777216,"sheet_cells":100000,"rows_first":2000,"rows_last":500,"rows_between":2000,"halvings":0,"cell_chars":16384,"cell_head_chars":4096},"cells_cut":0,"cells_raw":0,"read":"whole","date_system":"1900"}

{"sheet":"Modelo Atmosférico","index":0,"n_rows":19,"n_cols":4,"rows_kept":19,"cut":false,"hidden":false,"merged":[[1,0,1,1]]}
[]
["Equação Barométrica"]
["P (input)",101323.8,null,{"$f":"101325-1.2","v":101323.8}]
["h (output)",{"$f":"($B$9/$B$10)*((POWER(B3/$B$14,(-$B$11*$B$10)/($B$12*$B$13)))-1)","v":9.9891115600868857E-2}]
[]
["h (input)",950]
["P (output)",{"$f":"B14*EXP(-B12*B13*B6/(B11*B9))","v":90531.761188046949}]
[]
["EQ1_Tb",{"$f":"273.15+C9","v":288.14999999999998},15]
["EQ1_Lb",-6.4999999999999997E-3]
["EQ1_R",8.3143200000000004]
["EQ1_g",9.8066499999999994]
["EQ1_M",2.8964400000000001E-2]
["EQ1_Pb",101325]
[]
["coef1",44307]
["index1",0.21190000000000001]
["coef2",44330]
["index2",0.1903]

{"sheet":"Leitura Dados de Vôo","index":1,"n_rows":248,"n_cols":6,"rows_kept":248,"cut":false,"hidden":false,"merged":[[4,0,4,2],[0,0,0,1],[1,0,1,2],[2,0,2,2],[3,0,3,2]]}
["Vôo Nº:",null,null,"Data:"]
[null,null,null,null,"Altitude (m)"]
["Pressão no Solo (Pa)",null,null,92295.16,{"$f":"IF(D3<>0,('Modelo Atmosférico'!$B$9/'Modelo Atmosférico'!$B$10)*((POWER(D3/'Modelo Atmosférico'!$B$14,(-'Modelo Atmosférico'!$B$11*'Modelo Atmosférico'!$B$10)/('Modelo Atmosférico'!$B$12*'Modelo Atmosférico'!$B$13)))-1),0)","v":780.34037072925366},"Apogeu (m)"]
["Pressão no Apogeu (Pa)",null,null,91563.67,{"$f":"IF(D4<>0,('Modelo Atmosférico'!$B$9/'Modelo Atmosférico'!$B$10)*((POWER(D4/'Modelo Atmosférico'!$B$14,(-'Modelo Atmosférico'!$B$11*'Modelo Atmosférico'!$B$10)/('Modelo Atmosférico'!$B$12*'Modelo Atmosférico'!$B$13)))-1),0)","v":846.22358761098917},{"$f":"E4-E3","v":65.883216881735507}]
[]
[null,null,"Altímetro"]
["Tempo (s)",null,"Dados Brutos","Pressao","Altitude","Altura"]
[0,null,29044,92295.16,{"$f":"IF(D8<>0,('Modelo Atmosférico'!$B$9/'Modelo Atmosférico'!$B$10)*((POWER(D8/'Modelo Atmosférico'!$B$14,(-'Modelo Atmosférico'!$B$11*'Modelo Atmosférico'!$B$10)/('Modelo Atmosférico'!$B$12*'Modelo Atmosférico'!$B$13)))-1),0)","v":780.34037072925366},{"$f":"IF(D8<>0,E8-$E$3,0)","v":0}]
[0.192,null,29062,92246.92,{"$f":"IF(D9<>0,('Modelo Atmosférico'!$B$9/'Modelo Atmosférico'!$B$10)*((POWER(D9/'Modelo Atmosférico'!$B$14,(-'Modelo Atmosférico'!$B$11*'Modelo Atmosférico'!$B$10)/('Modelo Atmosférico'!$B$12*'Modelo Atmosférico'!$B$13)))-1),0)","v":784.67216287860163},4.3317921493479616]
[0.38400000000000001,null,29077,92206.73,{"$f":"IF(D10<>0,('Modelo Atmosférico'!$B$9/'Modelo Atmosférico'!$B$10)*((POWER(D10/'Modelo Atmosférico'!$B$14,(-'Modelo Atmosférico'!$B$11*'Modelo Atmosférico'!$B$10)/('Modelo Atmosférico'!$B$12*'Modelo Atmosférico'!$B$13)))-1),0)","v":788.28249260901566},7.9421218797619986]
[0.57599999999999996,null,29146,92021.84,{"$f":"IF(D11<>0,('Modelo Atmosférico'!$B$9/'Modelo Atmosférico'!$B$10)*((POWER(D11/'Modelo Atmosférico'!$B$14,(-'Modelo Atmosférico'!$B$11*'Modelo Atmosférico'!$B$10)/('Modelo Atmosférico'!$B$12*'Modelo Atmosférico'!$B$13)))-1),0)","v":804.90787974009424},24.567509010840581]
[0.76800000000000002,null,29168,91962.880000000005,{"$f":"IF(D12<>0,('Modelo Atmosférico'!$B$9/'Modelo Atmosférico'!$B$10)*((POWER(D12/'Modelo Atmosférico'!$B$14,(-'Modelo Atmosférico'!$B$11*'Modelo Atmosférico'!$B$10)/('Modelo Atmosférico'!$B$12*'Modelo Atmosférico'!$B$13)))-1),0)","v":810.21527587798801},29.874905148734342]
[0.96,null,29187,91911.98,{"$f":"IF(D13<>0,('Modelo Atmosférico'!$B$9/'Modelo Atmosférico'!$B$10)*((POWER(D13/'Modelo Atmosférico'!$B$14,(-'Modelo Atmosférico'!$B$11*'Modelo Atmosférico'!$B$10)/('Modelo Atmosférico'!$B$12*'Modelo Atmosférico'!$B$13)))-1),0)","v":814.79935236536937},34.458981636115709]
[1.1519999999999999,null,29209,91853.03,{"$f":"IF(D14<>0,('Modelo Atmosférico'!$B$9/'Modelo Atmosférico'!$B$10)*((POWER(D14/'Modelo Atmosférico'!$B$14,(-'Modelo Atmosférico'!$B$11*'Modelo Atmosférico'!$B$10)/('Modelo Atmosférico'!$B$12*'Modelo Atmosférico'!$B$13)))-1),0)","v":820.11098509514125},39.770614365887582]
[1.3440000000000001,null,29225,91810.16,{"$f":"IF(D15<>0,('Modelo Atmosférico'!$B$9/'Modelo Atmosférico'!$B$10)*((POWER(D15/'Modelo Atmosférico'!$B$14,(-'Modelo Atmosférico'!$B$11*'Modelo Atmosférico'!$B$10)/('Modelo Atmosférico'!$B$12*'Modelo Atmosférico'!$B$13)))-1),0)","v":823.97547885514223},43.635108125888564]
[1.536,null,29240,91769.97,{"$f":"IF(D16<>0,('Modelo Atmosférico'!$B$9/'Modelo Atmosférico'!$B$10)*((POWER(D16/'Modelo Atmosférico'!$B$14,(-'Modelo Atmosférico'!$B$11*'Modelo Atmosférico'!$B$10)/('Modelo Atmosférico'!$B$12*'Modelo Atmosférico'!$B$13)))-1),0)","v":827.59971264627393},47.259341917020265]
[1.728,null,29256,91727.1,{"$f":"IF(D17<>0,('Modelo Atmosférico'!$B$9/'Modelo Atmosférico'!$B$10)*((POWER(D17/'Modelo Atmosférico'!$B$14,(-'Modelo Atmosférico'!$B$11*'Modelo Atmosférico'!$B$10)/('Modelo Atmosférico'!$B$12*'Modelo Atmosférico'!$B$13)))-1),0)","v":831.46703904951494},51.126668320261274]
[1.92,null,29269,91692.27,{"$f":"IF(D18<>0,('Modelo Atmosférico'!$B$9/'Modelo Atmosférico'!$B$10)*((POWER(D18/'Modelo Atmosférico'!$B$14,(-'Modelo Atmosférico'!$B$11*'Modelo Atmosférico'!$B$10)/('Modelo Atmosférico'!$B$12*'Modelo Atmosférico'!$B$13)))-1),0)","v":834.61015033065155},54.269779601397886]
[2.1120000000000001,null,29281,91660.13,{"$f":"IF(D19<>0,('Modelo Atmosférico'!$B$9/'Modelo Atmosférico'!$B$10)*((POWER(D19/'Modelo Atmosférico'!$B$14,(-'Modelo Atmosférico'!$B$11*'Modelo Atmosférico'!$B$10)/('Modelo Atmosférico'!$B$12*'Modelo Atmosférico'!$B$13)))-1),0)","v":837.5113697631175},57.170999033863836]
[2.3039999999999998,null,29289,91638.69,{"$f":"IF(D20<>0,('Modelo Atmosférico'!$B$9/'Modelo Atmosférico'!$B$10)*((POWER(D20/'Modelo Atmosférico'!$B$14,(-'Modelo Atmosférico'!$B$11*'Modelo Atmosférico'!$B$10)/('Modelo Atmosférico'!$B$12*'Modelo Atmosférico'!$B$13)))-1),0)","v":839.44717769174872},59.106806962495057]
[2.496,null,29298,91614.58,{"$f":"IF(D21<>0,('Modelo Atmosférico'!$B$9/'Modelo Atmosférico'!$B$10)*((POWER(D21/'Modelo Atmosférico'!$B$14,(-'Modelo Atmosférico'!$B$11*'Modelo Atmosférico'!$B$10)/('Modelo Atmosférico'!$B$12*'Modelo Atmosférico'!$B$13)))-1),0)","v":841.62449684985393},61.284126120600263]
[2.6880000000000002,null,29307,91590.46,{"$f":"IF(D22<>0,('Modelo Atmosférico'!$B$9/'Modelo Atmosférico'!$B$10)*((POWER(D22/'Modelo Atmosférico'!$B$14,(-'Modelo Atmosférico'!$B$11*'Modelo Atmosférico'!$B$10)/('Modelo Atmosférico'!$B$12*'Modelo Atmosférico'!$B$13)))-1),0)","v":843.8031834026433},63.462812673389635]
[2.88,null,29313,91574.39,{"$f":"IF(D23<>0,('Modelo Atmosférico'!$B$9/'Modelo Atmosférico'!$B$10)*((POWER(D23/'Modelo Atmosférico'!$B$14,(-'Modelo Atmosférico'!$B$11*'Modelo Atmosférico'!$B$10)/('Modelo Atmosférico'!$B$12*'Modelo Atmosférico'!$B$13)))-1),0)","v":845.25499572700153},64.914624997747865]
[3.0720000000000001,null,29313,91574.39,{"$f":"IF(D24<>0,('Modelo Atmosférico'!$B$9/'Modelo Atmosférico'!$B$10)*((POWER(D24/'Modelo Atmosférico'!$B$14,(-'Modelo Atmosférico'!$B$11*'Modelo Atmosférico'!$B$10)/('Modelo Atmosférico'!$B$12*'Modelo Atmosférico'!$B$13)))-1),0)","v":845.25499572700153},64.914624997747865]
[3.2639999999999998,null,29317,91563.67,{"$f":"IF(D25<>0,('Modelo Atmosférico'!$B$9/'Modelo Atmosférico'!$B$10)*((POWER(D25/'Modelo Atmosférico'!$B$14,(-'Modelo Atmosférico'!$B$11*'Modelo Atmosférico'!$B$10)/('Modelo Atmosférico'!$B$12*'Modelo Atmosférico'!$B$13)))-1),0)","v":846.22358761098917},65.883216881735507]
[3.456,null,29317,91563.67,{"$f":"IF(D26<>0,('Modelo Atmosférico'!$B$9/'Modelo Atmosférico'!$B$10)*((POWER(D26/'Modelo Atmosférico'!$B$14,(-'Modelo Atmosférico'!$B$11*'Modelo Atmosférico'!$B$10)/('Modelo Atmosférico'!$B$12*'Modelo Atmosférico'!$B$13)))-1),0)","v":846.22358761098917},65.883216881735507]
[3.6480000000000001,null,29317,91563.67,{"$f":"IF(D27<>0,('Modelo Atmosférico'!$B$9/'Modelo Atmosférico'!$B$10)*((POWER(D27/'Modelo Atmosférico'!$B$14,(-'Modelo Atmosférico'!$B$11*'Modelo Atmosférico'!$B$10)/('Modelo Atmosférico'!$B$12*'Modelo Atmosférico'!$B$13)))-1),0)","v":846.22358761098917},65.883216881735507]
[3.84,null,29315,91569.03,{"$f":"IF(D28<>0,('Modelo Atmosférico'!$B$9/'Modelo Atmosférico'!$B$10)*((POWER(D28/'Modelo Atmosférico'!$B$14,(-'Modelo Atmosférico'!$B$11*'Modelo Atmosférico'!$B$10)/('Modelo Atmosférico'!$B$12*'Modelo Atmosférico'!$B$13)))-1),0)","v":845.73928019166271},65.398909462409051]
[4.032,null,29309,91585.1,{"$f":"IF(D29<>0,('Modelo Atmosférico'!$B$9/'Modelo Atmosférico'!$B$10)*((POWER(D29/'Modelo Atmosférico'!$B$14,(-'Modelo Atmosférico'!$B$11*'Modelo Atmosférico'!$B$10)/('Modelo Atmosférico'!$B$12*'Modelo Atmosférico'!$B$13)))-1),0)","v":844.28739906072008},63.947028331466413]
[4.2240000000000002,null,29305,91595.81,{"$f":"IF(D30<>0,('Modelo Atmosférico'!$B$9/'Modelo Atmosférico'!$B$10)*((POWER(D30/'Modelo Atmosférico'!$B$14,(-'Modelo Atmosférico'!$B$11*'Modelo Atmosférico'!$B$10)/('Modelo Atmosférico'!$B$12*'Modelo Atmosférico'!$B$13)))-1),0)","v":843.31989401275223},62.979523283498565]
[4.4160000000000004,null,29289,91638.69,{"$f":"IF(D31<>0,('Modelo Atmosférico'!$B$9/'Modelo Atmosférico'!$B$10)*((POWER(D31/'Modelo Atmosférico'!$B$14,(-'Modelo Atmosférico'!$B$11*'Modelo Atmosférico'!$B$10)/('Modelo Atmosférico'!$B$12*'Modelo Atmosférico'!$B$13)))-1),0)","v":839.44717769174872},59.106806962495057]
[4.6079999999999997,null,29289,91638.69,{"$f":"IF(D32<>0,('Modelo Atmosférico'!$B$9/'Modelo Atmosférico'!$B$10)*((POWER(D32/'Modelo Atmosférico'!$B$14,(-'Modelo Atmosférico'!$B$11*'Modelo Atmosférico'!$B$10)/('Modelo Atmosférico'!$B$12*'Modelo Atmosférico'!$B$13)))-1),0)","v":839.44717769174872},59.106806962495057]
[4.8,null,29271,91686.91,{"$f":"IF(D33<>0,('Modelo Atmosférico'!$B$9/'Modelo Atmosférico'!$B$10)*((POWER(D33/'Modelo Atmosférico'!$B$14,(-'Modelo Atmosférico'!$B$11*'Modelo Atmosférico'!$B$10)/('Modelo Atmosférico'!$B$12*'Modelo Atmosférico'!$B$13)))-1),0)","v":835.09393057814418},54.753559848890518]
[4.992,null,29257,91724.42,{"$f":"IF(D34<>0,('Modelo Atmosférico'!$B$9/'Modelo Atmosférico'!$B$10)*((POWER(D34/'Modelo Atmosférico'!$B$14,(-'Modelo Atmosférico'!$B$11*'Modelo Atmosférico'!$B$10)/('Modelo Atmosférico'!$B$12*'Modelo Atmosférico'!$B$13)))-1),0)","v":831.7088519344295},{"$f":"IF(D34<>0,E34-$E$3,0)","v":51.36848120517584}]
[5.1840000000000002,null,29261,91713.7,{"$f":"IF(D35<>0,('Modelo Atmosférico'!$B$9/'Modelo Atmosférico'!$B$10)*((POWER(D35/'Modelo Atmosférico'!$B$14,(-'Modelo Atmosférico'!$B$11*'Modelo Atmosférico'!$B$10)/('Modelo Atmosférico'!$B$12*'Modelo Atmosférico'!$B$13)))-1),0)","v":832.6761606879428},{"$f":"IF(D35<>0,E35-$E$3,0)","v":52.335789958689134}]
[5.3760000000000003,null,29249,91745.86,{"$f":"IF(D36<>0,('Modelo Atmosférico'!$B$9/'Modelo Atmosférico'!$B$10)*((POWER(D36/'Modelo Atmosférico'!$B$14,(-'Modelo Atmosférico'!$B$11*'Modelo Atmosférico'!$B$10)/('Modelo Atmosférico'!$B$12*'Modelo Atmosférico'!$B$13)))-1),0)","v":829.7745090200317},49.434138290778037]
[5.5679999999999996,null,29249,91745.86,{"$f":"IF(D37<>0,('Modelo Atmosférico'!$B$9/'Modelo Atmosférico'!$B$10)*((POWER(D37/'Modelo Atmosférico'!$B$14,(-'Modelo Atmosférico'!$B$11*'Modelo Atmosférico'!$B$10)/('Modelo Atmosférico'!$B$12*'Modelo Atmosférico'!$B$13)))-1),0)","v":829.7745090200317},49.434138290778037]
[5.76,null,29246,91753.89,{"$f":"IF(D38<>0,('Modelo Atmosférico'!$B$9/'Modelo Atmosférico'!$B$10)*((POWER(D38/'Modelo Atmosférico'!$B$14,(-'Modelo Atmosférico'!$B$11*'Modelo Atmosférico'!$B$10)/('Modelo Atmosférico'!$B$12*'Modelo Atmosférico'!$B$13)))-1),0)","v":829.05012685624604},48.709756126992374]
[5.952,null,29243,91761.94,{"$f":"IF(D39<>0,('Modelo Atmosférico'!$B$9/'Modelo Atmosférico'!$B$10)*((POWER(D39/'Modelo Atmosférico'!$B$14,(-'Modelo Atmosférico'!$B$11*'Modelo Atmosférico'!$B$10)/('Modelo Atmosférico'!$B$12*'Modelo Atmosférico'!$B$13)))-1),0)","v":828.32399202658462},47.983621297330956]
[6.1440000000000001,null,29242,91764.61,{"$f":"IF(D40<>0,('Modelo Atmosférico'!$B$9/'Modelo Atmosférico'!$B$10)*((POWER(D40/'Modelo Atmosférico'!$B$14,(-'Modelo Atmosférico'!$B$11*'Modelo Atmosférico'!$B$10)/('Modelo Atmosférico'!$B$12*'Modelo Atmosférico'!$B$13)))-1),0)","v":828.08316118259631},47.74279045334265]
[6.3360000000000003,null,29238,91775.33,{"$f":"IF(D41<>0,('Modelo Atmosférico'!$B$9/'Modelo Atmosférico'!$B$10)*((POWER(D41/'Modelo Atmosférico'!$B$14,(-'Modelo Atmosférico'!$B$11*'Modelo Atmosférico'!$B$10)/('Modelo Atmosférico'!$B$12*'Modelo Atmosférico'!$B$13)))-1),0)","v":827.11628697373271},46.775916244479049]
[6.5279999999999996,null,29235,91783.360000000001,{"$f":"IF(D42<>0,('Modelo Atmosférico'!$B$9/'Modelo Atmosférico'!$B$10)*((POWER(D42/'Modelo Atmosférico'!$B$14,(-'Modelo Atmosférico'!$B$11*'Modelo Atmosférico'!$B$10)/('Modelo Atmosférico'!$B$12*'Modelo Atmosférico'!$B$13)))-1),0)","v":826.3920931575326},46.051722428278936]
[6.72,null,29222,91818.2,{"$f":"IF(D43<>0,('Modelo Atmosférico'!$B$9/'Modelo Atmosférico'!$B$10)*((POWER(D43/'Modelo Atmosférico'!$B$14,(-'Modelo Atmosférico'!$B$11*'Modelo Atmosférico'!$B$10)/('Modelo Atmosférico'!$B$12*'Modelo Atmosférico'!$B$13)))-1),0)","v":823.25060595080299},42.910235221549328]
[6.9119999999999999,null,29222,91818.2,{"$f":"IF(D44<>0,('Modelo Atmosférico'!$B$9/'Modelo Atmosférico'!$B$10)*((POWER(D44/'Modelo Atmosférico'!$B$14,(-'Modelo Atmosférico'!$B$11*'Modelo Atmosférico'!$B$10)/('Modelo Atmosférico'!$B$12*'Modelo Atmosférico'!$B$13)))-1),0)","v":823.25060595080299},42.910235221549328]
[7.1040000000000001,null,29213,91842.31,{"$f":"IF(D45<>0,('Modelo Atmosférico'!$B$9/'Modelo Atmosférico'!$B$10)*((POWER(D45/'Modelo Atmosférico'!$B$14,(-'Modelo Atmosférico'!$B$11*'Modelo Atmosférico'!$B$10)/('Modelo Atmosférico'!$B$12*'Modelo Atmosférico'!$B$13)))-1),0)","v":821.07719693245338},40.736826203199712]
[7.2959999999999896,null,29199,91879.83,{"$f":"IF(D46<>0,('Modelo Atmosférico'!$B$9/'Modelo Atmosférico'!$B$10)*((POWER(D46/'Modelo Atmosférico'!$B$14,(-'Modelo Atmosférico'!$B$11*'Modelo Atmosférico'!$B$10)/('Modelo Atmosférico'!$B$12*'Modelo Atmosférico'!$B$13)))-1),0)","v":817.69585492128829},37.355484192034623]
[7.4879999999999898,null,29186,91914.66,{"$f":"IF(D47<>0,('Modelo Atmosférico'!$B$9/'Modelo Atmosférico'!$B$10)*((POWER(D47/'Modelo Atmosférico'!$B$14,(-'Modelo Atmosférico'!$B$11*'Modelo Atmosférico'!$B$10)/('Modelo Atmosférico'!$B$12*'Modelo Atmosférico'!$B$13)))-1),0)","v":814.55793912090087},34.217568391647205]
[7.6799999999999899,null,29146,92021.84,{"$f":"IF(D48<>0,('Modelo Atmosférico'!$B$9/'Modelo Atmosférico'!$B$10)*((POWER(D48/'Modelo Atmosférico'!$B$14,(-'Modelo Atmosférico'!$B$11*'Modelo Atmosférico'!$B$10)/('Modelo Atmosférico'!$B$12*'Modelo Atmosférico'!$B$13)))-1),0)","v":804.90787974009424},24.567509010840581]
[7.8719999999999901,null,29156,91995.05,{"$f":"IF(D49<>0,('Modelo Atmosférico'!$B$9/'Modelo Atmosférico'!$B$10)*((POWER(D49/'Modelo Atmosférico'!$B$14,(-'Modelo Atmosférico'!$B$11*'Modelo Atmosférico'!$B$10)/('Modelo Atmosférico'!$B$12*'Modelo Atmosférico'!$B$13)))-1),0)","v":807.31909093064257},26.97872020138891]
[8.0639999999999894,null,29198,91882.5,{"$f":"IF(D50<>0,('Modelo Atmosférico'!$B$9/'Modelo Atmosférico'!$B$10)*((POWER(D50/'Modelo Atmosférico'!$B$14,(-'Modelo Atmosférico'!$B$11*'Modelo Atmosférico'!$B$10)/('Modelo Atmosférico'!$B$12*'Modelo Atmosférico'!$B$13)))-1),0)","v":817.45527431888252},37.114903589628852]
[8.2559999999999896,null,29193,91895.91,{"$f":"IF(D51<>0,('Modelo Atmosférico'!$B$9/'Modelo Atmosférico'!$B$10)*((POWER(D51/'Modelo Atmosférico'!$B$14,(-'Modelo Atmosférico'!$B$11*'Modelo Atmosférico'!$B$10)/('Modelo Atmosférico'!$B$12*'Modelo Atmosférico'!$B$13)))-1),0)","v":816.24705060821316},35.906679878959494]
[8.4479999999999897,null,29176,91941.45,{"$f":"IF(D52<>0,('Modelo Atmosférico'!$B$9/'Modelo Atmosférico'!$B$10)*((POWER(D52/'Modelo Atmosférico'!$B$14,(-'Modelo Atmosférico'!$B$11*'Modelo Atmosférico'!$B$10)/('Modelo Atmosférico'!$B$12*'Modelo Atmosférico'!$B$13)))-1),0)","v":812.14502068101706},31.804649951763395]
[8.6399999999999899,null,29186,91914.66,{"$f":"IF(D53<>0,('Modelo Atmosférico'!$B$9/'Modelo Atmosférico'!$B$10)*((POWER(D53/'Modelo Atmosférico'!$B$14,(-'Modelo Atmosférico'!$B$11*'Modelo Atmosférico'!$B$10)/('Modelo Atmosférico'!$B$12*'Modelo Atmosférico'!$B$13)))-1),0)","v":814.55793912090087},34.217568391647205]
[8.8319999999999901,null,29180,91930.73,{"$f":"IF(D54<>0,('Modelo Atmosférico'!$B$9/'Modelo Atmosférico'!$B$10)*((POWER(D54/'Modelo Atmosférico'!$B$14,(-'Modelo Atmosférico'!$B$11*'Modelo Atmosférico'!$B$10)/('Modelo Atmosférico'!$B$12*'Modelo Atmosférico'!$B$13)))-1),0)","v":813.11047999417679},32.770109264923121]
[9.0239999999999903,null,29179,91933.41,{"$f":"IF(D55<>0,('Modelo Atmosférico'!$B$9/'Modelo Atmosférico'!$B$10)*((POWER(D55/'Modelo Atmosférico'!$B$14,(-'Modelo Atmosférico'!$B$11*'Modelo Atmosférico'!$B$10)/('Modelo Atmosférico'!$B$12*'Modelo Atmosférico'!$B$13)))-1),0)","v":812.86910661983745},32.528735890583789]
[9.2159999999999904,null,29168,91962.880000000005,{"$f":"IF(D56<>0,('Modelo Atmosférico'!$B$9/'Modelo Atmosférico'!$B$10)*((POWER(D56/'Modelo Atmosférico'!$B$14,(-'Modelo Atmosférico'!$B$11*'Modelo Atmosférico'!$B$10)/('Modelo Atmosférico'!$B$12*'Modelo Atmosférico'!$B$13)))-1),0)","v":810.21527587798801},29.874905148734342]
[9.4079999999999906,null,29166,91968.25,{"$f":"IF(D57<>0,('Modelo Atmosférico'!$B$9/'Modelo Atmosférico'!$B$10)*((POWER(D57/'Modelo Atmosférico'!$B$14,(-'Modelo Atmosférico'!$B$11*'Modelo Atmosférico'!$B$10)/('Modelo Atmosférico'!$B$12*'Modelo Atmosférico'!$B$13)))-1),0)","v":809.73177112269366},29.391400393439994]
[9.5999999999999908,null,29150,92011.12,{"$f":"IF(D58<>0,('Modelo Atmosférico'!$B$9/'Modelo Atmosférico'!$B$10)*((POWER(D58/'Modelo Atmosférico'!$B$14,(-'Modelo Atmosférico'!$B$11*'Modelo Atmosférico'!$B$10)/('Modelo Atmosférico'!$B$12*'Modelo Atmosférico'!$B$13)))-1),0)","v":805.87265600662261},25.532285277368942]
[9.7919999999999892,null,29153,92003.08,{"$f":"IF(D59<>0,('Modelo Atmosférico'!$B$9/'Modelo Atmosférico'!$B$10)*((POWER(D59/'Modelo Atmosférico'!$B$14,(-'Modelo Atmosférico'!$B$11*'Modelo Atmosférico'!$B$10)/('Modelo Atmosférico'!$B$12*'Modelo Atmosférico'!$B$13)))-1),0)","v":806.59629793853185},26.255927209278184]
[9.9839999999999893,null,29151,92008.44,{"$f":"IF(D60<>0,('Modelo Atmosférico'!$B$9/'Modelo Atmosférico'!$B$10)*((POWER(D60/'Modelo Atmosférico'!$B$14,(-'Modelo Atmosférico'!$B$11*'Modelo Atmosférico'!$B$10)/('Modelo Atmosférico'!$B$12*'Modelo Atmosférico'!$B$13)))-1),0)","v":806.11386429466381},25.773493565410149]
[10.176,null,29145,92024.52,{"$f":"IF(D61<>0,('Modelo Atmosférico'!$B$9/'Modelo Atmosférico'!$B$10)*((POWER(D61/'Modelo Atmosférico'!$B$14,(-'Modelo Atmosférico'!$B$11*'Modelo Atmosférico'!$B$10)/('Modelo Atmosférico'!$B$12*'Modelo Atmosférico'!$B$13)))-1),0)","v":804.66669989336515},24.326329164111485]
[10.368,null,29141,92035.23,{"$f":"IF(D62<>0,('Modelo Atmosférico'!$B$9/'Modelo Atmosférico'!$B$10)*((POWER(D62/'Modelo Atmosférico'!$B$14,(-'Modelo Atmosférico'!$B$11*'Modelo Atmosférico'!$B$10)/('Modelo Atmosférico'!$B$12*'Modelo Atmosférico'!$B$13)))-1),0)","v":803.70293720645611},23.362566477202449]
[10.56,null,29137,92045.95,{"$f":"IF(D63<>0,('Modelo Atmosférico'!$B$9/'Modelo Atmosférico'!$B$10)*((POWER(D63/'Modelo Atmosférico'!$B$14,(-'Modelo Atmosférico'!$B$11*'Modelo Atmosférico'!$B$10)/('Modelo Atmosférico'!$B$12*'Modelo Atmosférico'!$B$13)))-1),0)","v":802.73836558396954},22.397994854715876]
[10.752000000000001,null,29134,92053.98,{"$f":"IF(D64<>0,('Modelo Atmosférico'!$B$9/'Modelo Atmosférico'!$B$10)*((POWER(D64/'Modelo Atmosférico'!$B$14,(-'Modelo Atmosférico'!$B$11*'Modelo Atmosférico'!$B$10)/('Modelo Atmosférico'!$B$12*'Modelo Atmosférico'!$B$13)))-1),0)","v":802.01589624124824},21.675525511994579]
[10.944000000000001,null,29118,92096.87,{"$f":"IF(D65<>0,('Modelo Atmosférico'!$B$9/'Modelo Atmosférico'!$B$10)*((POWER(D65/'Modelo Atmosférico'!$B$14,(-'Modelo Atmosférico'!$B$11*'Modelo Atmosférico'!$B$10)/('Modelo Atmosférico'!$B$12*'Modelo Atmosférico'!$B$13)))-1),0)","v":798.15789221539899},17.817521486145324]
[11.135999999999999,null,29111,92115.63,{"$f":"IF(D66<>0,('Modelo Atmosférico'!$B$9/'Modelo Atmosférico'!$B$10)*((POWER(D66/'Modelo Atmosférico'!$B$14,(-'Modelo Atmosférico'!$B$11*'Modelo Atmosférico'!$B$10)/('Modelo Atmosférico'!$B$12*'Modelo Atmosférico'!$B$13)))-1),0)","v":796.47086631882473},16.130495589571069]
[11.327999999999999,null,29116,92102.22,{"$f":"IF(D67<>0,('Modelo Atmosférico'!$B$9/'Modelo Atmosférico'!$B$10)*((POWER(D67/'Modelo Atmosférico'!$B$14,(-'Modelo Atmosférico'!$B$11*'Modelo Atmosférico'!$B$10)/('Modelo Atmosférico'!$B$12*'Modelo Atmosférico'!$B$13)))-1),0)","v":797.67675572381711},17.336384994563446]
[11.52,null,29050,92279.08,{"$f":"IF(D68<>0,('Modelo Atmosférico'!$B$9/'Modelo Atmosférico'!$B$10)*((POWER(D68/'Modelo Atmosférico'!$B$14,(-'Modelo Atmosférico'!$B$11*'Modelo Atmosférico'!$B$10)/('Modelo Atmosférico'!$B$12*'Modelo Atmosférico'!$B$13)))-1),0)","v":781.78409770020528},1.4437269709516158]
[11.712,null,29100,92145.09,{"$f":"IF(D69<>0,('Modelo Atmosférico'!$B$9/'Modelo Atmosférico'!$B$10)*((POWER(D69/'Modelo Atmosférico'!$B$14,(-'Modelo Atmosférico'!$B$11*'Modelo Atmosférico'!$B$10)/('Modelo Atmosférico'!$B$12*'Modelo Atmosférico'!$B$13)))-1),0)","v":793.82218554733731},13.481814818083649]
[11.904,null,29102,92139.73,{"$f":"IF(D70<>0,('Modelo Atmosférico'!$B$9/'Modelo Atmosférico'!$B$10)*((POWER(D70/'Modelo Atmosférico'!$B$14,(-'Modelo Atmosférico'!$B$11*'Modelo Atmosférico'!$B$10)/('Modelo Atmosférico'!$B$12*'Modelo Atmosférico'!$B$13)))-1),0)","v":794.30403977209164},13.963669042837978]
[12.096,null,29095,92158.5,{"$f":"IF(D71<>0,('Modelo Atmosférico'!$B$9/'Modelo Atmosférico'!$B$10)*((POWER(D71/'Modelo Atmosférico'!$B$14,(-'Modelo Atmosférico'!$B$11*'Modelo Atmosférico'!$B$10)/('Modelo Atmosférico'!$B$12*'Modelo Atmosférico'!$B$13)))-1),0)","v":792.61675041881983},12.27637968956617]
[12.288,null,29091,92169.22,{"$f":"IF(D72<>0,('Modelo Atmosférico'!$B$9/'Modelo Atmosférico'!$B$10)*((POWER(D72/'Modelo Atmosférico'!$B$14,(-'Modelo Atmosférico'!$B$11*'Modelo Atmosférico'!$B$10)/('Modelo Atmosférico'!$B$12*'Modelo Atmosférico'!$B$13)))-1),0)","v":791.65322358959668},11.312852860343014]
[12.48,null,29089,92174.58,{"$f":"IF(D73<>0,('Modelo Atmosférico'!$B$9/'Modelo Atmosférico'!$B$10)*((POWER(D73/'Modelo Atmosférico'!$B$14,(-'Modelo Atmosférico'!$B$11*'Modelo Atmosférico'!$B$10)/('Modelo Atmosférico'!$B$12*'Modelo Atmosférico'!$B$13)))-1),0)","v":791.17149420347232},10.831123474218657]
[12.672000000000001,null,29081,92196.02,{"$f":"IF(D74<>0,('Modelo Atmosférico'!$B$9/'Modelo Atmosférico'!$B$10)*((POWER(D74/'Modelo Atmosférico'!$B$14,(-'Modelo Atmosférico'!$B$11*'Modelo Atmosférico'!$B$10)/('Modelo Atmosférico'!$B$12*'Modelo Atmosférico'!$B$13)))-1),0)","v":789.24480345981965},8.9044327305659863]
[12.864000000000001,null,29077,92206.73,{"$f":"IF(D75<>0,('Modelo Atmosférico'!$B$9/'Modelo Atmosférico'!$B$10)*((POWER(D75/'Modelo Atmosférico'!$B$14,(-'Modelo Atmosférico'!$B$11*'Modelo Atmosférico'!$B$10)/('Modelo Atmosférico'!$B$12*'Modelo Atmosférico'!$B$13)))-1),0)","v":788.28249260901566},7.9421218797619986]
[13.055999999999999,null,29071,92222.81,{"$f":"IF(D76<>0,('Modelo Atmosférico'!$B$9/'Modelo Atmosférico'!$B$10)*((POWER(D76/'Modelo Atmosférico'!$B$14,(-'Modelo Atmosférico'!$B$11*'Modelo Atmosférico'!$B$10)/('Modelo Atmosférico'!$B$12*'Modelo Atmosférico'!$B$13)))-1),0)","v":786.83784850030406},6.4974777710503986]
[13.247999999999999,null,29064,92241.56,{"$f":"IF(D77<>0,('Modelo Atmosférico'!$B$9/'Modelo Atmosférico'!$B$10)*((POWER(D77/'Modelo Atmosférico'!$B$14,(-'Modelo Atmosférico'!$B$11*'Modelo Atmosférico'!$B$10)/('Modelo Atmosférico'!$B$12*'Modelo Atmosférico'!$B$13)))-1),0)","v":785.15358633713299},4.8132156078793287]
[13.44,null,29053,92271.05,{"$f":"IF(D78<>0,('Modelo Atmosférico'!$B$9/'Modelo Atmosférico'!$B$10)*((POWER(D78/'Modelo Atmosférico'!$B$14,(-'Modelo Atmosférico'!$B$11*'Modelo Atmosférico'!$B$10)/('Modelo Atmosférico'!$B$12*'Modelo Atmosférico'!$B$13)))-1),0)","v":782.50513961138643},2.164768882132762]
[13.632,null,29057,92260.33,{"$f":"IF(D79<>0,('Modelo Atmosférico'!$B$9/'Modelo Atmosférico'!$B$10)*((POWER(D79/'Modelo Atmosférico'!$B$14,(-'Modelo Atmosférico'!$B$11*'Modelo Atmosférico'!$B$10)/('Modelo Atmosférico'!$B$12*'Modelo Atmosférico'!$B$13)))-1),0)","v":783.46780527079966},3.1274345415459948]
[13.824,null,29054,92268.37,{"$f":"IF(D80<>0,('Modelo Atmosférico'!$B$9/'Modelo Atmosférico'!$B$10)*((POWER(D80/'Modelo Atmosférico'!$B$14,(-'Modelo Atmosférico'!$B$11*'Modelo Atmosférico'!$B$10)/('Modelo Atmosférico'!$B$12*'Modelo Atmosférico'!$B$13)))-1),0)","v":782.74579753565797},2.4054268064043072]
[14.016,null,29046,92289.8,{"$f":"IF(D81<>0,('Modelo Atmosférico'!$B$9/'Modelo Atmosférico'!$B$10)*((POWER(D81/'Modelo Atmosférico'!$B$14,(-'Modelo Atmosférico'!$B$11*'Modelo Atmosférico'!$B$10)/('Modelo Atmosférico'!$B$12*'Modelo Atmosférico'!$B$13)))-1),0)","v":780.82159042085982},0.48121969160615663]
[14.208,null,29046,92289.8,{"$f":"IF(D82<>0,('Modelo Atmosférico'!$B$9/'Modelo Atmosférico'!$B$10)*((POWER(D82/'Modelo Atmosférico'!$B$14,(-'Modelo Atmosférico'!$B$11*'Modelo Atmosférico'!$B$10)/('Modelo Atmosférico'!$B$12*'Modelo Atmosférico'!$B$13)))-1),0)","v":780.82159042085982},0.48121969160615663]
[14.4,null,28998,92418.44,{"$f":"IF(D83<>0,('Modelo Atmosférico'!$B$9/'Modelo Atmosférico'!$B$10)*((POWER(D83/'Modelo Atmosférico'!$B$14,(-'Modelo Atmosférico'!$B$11*'Modelo Atmosférico'!$B$10)/('Modelo Atmosférico'!$B$12*'Modelo Atmosférico'!$B$13)))-1),0)","v":769.27855858170869},-11.06181214754497]
[14.592000000000001,null,29042,92300.52,{"$f":"IF(D84<>0,('Modelo Atmosférico'!$B$9/'Modelo Atmosférico'!$B$10)*((POWER(D84/'Modelo Atmosférico'!$B$14,(-'Modelo Atmosférico'!$B$11*'Modelo Atmosférico'!$B$10)/('Modelo Atmosférico'!$B$12*'Modelo Atmosférico'!$B$13)))-1),0)","v":779.85917366651586},-0.48119706273780594]
[14.784000000000001,null,29034,92321.96,{"$f":"IF(D85<>0,('Modelo Atmosférico'!$B$9/'Modelo Atmosférico'!$B$10)*((POWER(D85/'Modelo Atmosférico'!$B$14,(-'Modelo Atmosférico'!$B$11*'Modelo Atmosférico'!$B$10)/('Modelo Atmosférico'!$B$12*'Modelo Atmosférico'!$B$13)))-1),0)","v":777.93461165672761},-2.4057590725260525]
[14.976000000000001,null,29021,92356.800000000003,{"$f":"IF(D86<>0,('Modelo Atmosférico'!$B$9/'Modelo Atmosférico'!$B$10)*((POWER(D86/'Modelo Atmosférico'!$B$14,(-'Modelo Atmosférico'!$B$11*'Modelo Atmosférico'!$B$10)/('Modelo Atmosférico'!$B$12*'Modelo Atmosférico'!$B$13)))-1),0)","v":774.80797012790481},-5.5324006013488543]
[15.167999999999999,null,29025,92346.08,{"$f":"IF(D87<>0,('Modelo Atmosférico'!$B$9/'Modelo Atmosférico'!$B$10)*((POWER(D87/'Modelo Atmosférico'!$B$14,(-'Modelo Atmosférico'!$B$11*'Modelo Atmosférico'!$B$10)/('Modelo Atmosférico'!$B$12*'Modelo Atmosférico'!$B$13)))-1),0)","v":775.76991193799802},-4.5704587912556462]
[15.36,null,29023,92351.44,{"$f":"IF(D88<>0,('Modelo Atmosférico'!$B$9/'Modelo Atmosférico'!$B$10)*((POWER(D88/'Modelo Atmosférico'!$B$14,(-'Modelo Atmosférico'!$B$11*'Modelo Atmosférico'!$B$10)/('Modelo Atmosférico'!$B$12*'Modelo Atmosférico'!$B$13)))-1),0)","v":775.2889297309913},-5.0514409982623647]
[15.552,null,29017,92367.52,{"$f":"IF(D89<>0,('Modelo Atmosférico'!$B$9/'Modelo Atmosférico'!$B$10)*((POWER(D89/'Modelo Atmosférico'!$B$14,(-'Modelo Atmosférico'!$B$11*'Modelo Atmosférico'!$B$10)/('Modelo Atmosférico'!$B$12*'Modelo Atmosférico'!$B$13)))-1),0)","v":773.84611872399807},-6.4942520052555892]
[15.744,null,29013,92378.23,{"$f":"IF(D90<>0,('Modelo Atmosférico'!$B$9/'Modelo Atmosférico'!$B$10)*((POWER(D90/'Modelo Atmosférico'!$B$14,(-'Modelo Atmosférico'!$B$11*'Modelo Atmosférico'!$B$10)/('Modelo Atmosférico'!$B$12*'Modelo Atmosférico'!$B$13)))-1),0)","v":772.8852548303056},-7.4551158989480655]
[15.936,null,29002,92407.72,{"$f":"IF(D91<>0,('Modelo Atmosférico'!$B$9/'Modelo Atmosférico'!$B$10)*((POWER(D91/'Modelo Atmosférico'!$B$14,(-'Modelo Atmosférico'!$B$11*'Modelo Atmosférico'!$B$10)/('Modelo Atmosférico'!$B$12*'Modelo Atmosférico'!$B$13)))-1),0)","v":770.23998081541242},-10.100389913841241]
[16.128,null,28987,92447.91,{"$f":"IF(D92<>0,('Modelo Atmosférico'!$B$9/'Modelo Atmosférico'!$B$10)*((POWER(D92/'Modelo Atmosférico'!$B$14,(-'Modelo Atmosférico'!$B$11*'Modelo Atmosférico'!$B$10)/('Modelo Atmosférico'!$B$12*'Modelo Atmosférico'!$B$13)))-1),0)","v":766.63600955186405},-13.704361177389615]
[16.32,null,28983,92458.63,{"$f":"IF(D93<>0,('Modelo Atmosférico'!$B$9/'Modelo Atmosférico'!$B$10)*((POWER(D93/'Modelo Atmosférico'!$B$14,(-'Modelo Atmosférico'!$B$11*'Modelo Atmosférico'!$B$10)/('Modelo Atmosférico'!$B$12*'Modelo Atmosférico'!$B$13)))-1),0)","v":765.674925750385},-14.665444978868663]
[16.512,null,28979,92469.35,{"$f":"IF(D94<>0,('Modelo Atmosférico'!$B$9/'Modelo Atmosférico'!$B$10)*((POWER(D94/'Modelo Atmosférico'!$B$14,(-'Modelo Atmosférico'!$B$11*'Modelo Atmosférico'!$B$10)/('Modelo Atmosférico'!$B$12*'Modelo Atmosférico'!$B$13)))-1),0)","v":764.71393217498269},-15.626438554270976]
[16.704000000000001,null,28981,92464,{"$f":"IF(D95<>0,('Modelo Atmosférico'!$B$9/'Modelo Atmosférico'!$B$10)*((POWER(D95/'Modelo Atmosférico'!$B$14,(-'Modelo Atmosférico'!$B$11*'Modelo Atmosférico'!$B$10)/('Modelo Atmosférico'!$B$12*'Modelo Atmosférico'!$B$13)))-1),0)","v":765.19352123641784},-15.146849492835827]
[16.896000000000001,null,28966,92504.2,{"$f":"IF(D96<>0,('Modelo Atmosférico'!$B$9/'Modelo Atmosférico'!$B$10)*((POWER(D96/'Modelo Atmosférico'!$B$14,(-'Modelo Atmosférico'!$B$11*'Modelo Atmosférico'!$B$10)/('Modelo Atmosférico'!$B$12*'Modelo Atmosférico'!$B$13)))-1),0)","v":761.59042981628909},-18.749940912964576]
[17.088000000000001,null,28963,92512.23,{"$f":"IF(D97<>0,('Modelo Atmosférico'!$B$9/'Modelo Atmosférico'!$B$10)*((POWER(D97/'Modelo Atmosférico'!$B$14,(-'Modelo Atmosférico'!$B$11*'Modelo Atmosférico'!$B$10)/('Modelo Atmosférico'!$B$12*'Modelo Atmosférico'!$B$13)))-1),0)","v":760.87085975562775},-19.469510973625916]
[17.28,null,28977,92474.72,{"$f":"IF(D98<>0,('Modelo Atmosférico'!$B$9/'Modelo Atmosférico'!$B$10)*((POWER(D98/'Modelo Atmosférico'!$B$14,(-'Modelo Atmosférico'!$B$11*'Modelo Atmosférico'!$B$10)/('Modelo Atmosférico'!$B$12*'Modelo Atmosférico'!$B$13)))-1),0)","v":764.23257285109833},-16.107797878155338]
[17.472000000000001,null,28970,92493.48,{"$f":"IF(D99<>0,('Modelo Atmosférico'!$B$9/'Modelo Atmosférico'!$B$10)*((POWER(D99/'Modelo Atmosférico'!$B$14,(-'Modelo Atmosférico'!$B$11*'Modelo Atmosférico'!$B$10)/('Modelo Atmosférico'!$B$12*'Modelo Atmosférico'!$B$13)))-1),0)","v":762.55113020355043},{"$f":"IF(D99<>0,E99-$E$3,0)","v":-17.789240525703235}]
[17.664000000000001,null,28970,92493.48,{"$f":"IF(D100<>0,('Modelo Atmosférico'!$B$9/'Modelo Atmosférico'!$B$10)*((POWER(D100/'Modelo Atmosférico'!$B$14,(-'Modelo Atmosférico'!$B$11*'Modelo Atmosférico'!$B$10)/('Modelo Atmosférico'!$B$12*'Modelo Atmosférico'!$B$13)))-1),0)","v":762.55113020355043},-17.789240525703235]
[17.856000000000002,null,28965,92506.880000000005,{"$f":"IF(D101<>0,('Modelo Atmosférico'!$B$9/'Modelo Atmosférico'!$B$10)*((POWER(D101/'Modelo Atmosférico'!$B$14,(-'Modelo Atmosférico'!$B$11*'Modelo Atmosférico'!$B$10)/('Modelo Atmosférico'!$B$12*'Modelo Atmosférico'!$B$13)))-1),0)","v":761.35026880547082},-18.990101923782845]
[18.047999999999998,null,28964,92509.55,{"$f":"IF(D102<>0,('Modelo Atmosférico'!$B$9/'Modelo Atmosférico'!$B$10)*((POWER(D102/'Modelo Atmosférico'!$B$14,(-'Modelo Atmosférico'!$B$11*'Modelo Atmosférico'!$B$10)/('Modelo Atmosférico'!$B$12*'Modelo Atmosférico'!$B$13)))-1),0)","v":761.11100952014556},-19.229361209108106]
[18.239999999999998,null,28956,92530.99,{"$f":"IF(D103<>0,('Modelo Atmosférico'!$B$9/'Modelo Atmosférico'!$B$10)*((POWER(D103/'Modelo Atmosférico'!$B$14,(-'Modelo Atmosférico'!$B$11*'Modelo Atmosférico'!$B$10)/('Modelo Atmosférico'!$B$12*'Modelo Atmosférico'!$B$13)))-1),0)","v":759.18996911757881},-21.150401611674852]
[18.431999999999999,null,28957,92528.31,{"$f":"IF(D104<>0,('Modelo Atmosférico'!$B$9/'Modelo Atmosférico'!$B$10)*((POWER(D104/'Modelo Atmosférico'!$B$14,(-'Modelo Atmosférico'!$B$11*'Modelo Atmosférico'!$B$10)/('Modelo Atmosférico'!$B$12*'Modelo Atmosférico'!$B$13)))-1),0)","v":759.43007945576733},-20.910291273486337]
[18.623999999999999,null,28951,92544.39,{"$f":"IF(D105<>0,('Modelo Atmosférico'!$B$9/'Modelo Atmosférico'!$B$10)*((POWER(D105/'Modelo Atmosférico'!$B$14,(-'Modelo Atmosférico'!$B$11*'Modelo Atmosférico'!$B$10)/('Modelo Atmosférico'!$B$12*'Modelo Atmosférico'!$B$13)))-1),0)","v":757.98950188799461},-22.350868841259057]
[18.815999999999999,null,28949,92549.75,{"$f":"IF(D106<>0,('Modelo Atmosférico'!$B$9/'Modelo Atmosférico'!$B$10)*((POWER(D106/'Modelo Atmosférico'!$B$14,(-'Modelo Atmosférico'!$B$11*'Modelo Atmosférico'!$B$10)/('Modelo Atmosférico'!$B$12*'Modelo Atmosférico'!$B$13)))-1),0)","v":757.50935440595526},-22.8310163232984]
[19.007999999999999,null,28941,92571.199999999997,{"$f":"IF(D107<>0,('Modelo Atmosférico'!$B$9/'Modelo Atmosférico'!$B$10)*((POWER(D107/'Modelo Atmosférico'!$B$14,(-'Modelo Atmosférico'!$B$11*'Modelo Atmosférico'!$B$10)/('Modelo Atmosférico'!$B$12*'Modelo Atmosférico'!$B$13)))-1),0)","v":755.58809400914731},-24.752276720106352]
[19.2,null,28924,92616.75,{"$f":"IF(D108<>0,('Modelo Atmosférico'!$B$9/'Modelo Atmosférico'!$B$10)*((POWER(D108/'Modelo Atmosférico'!$B$14,(-'Modelo Atmosférico'!$B$11*'Modelo Atmosférico'!$B$10)/('Modelo Atmosférico'!$B$12*'Modelo Atmosférico'!$B$13)))-1),0)","v":751.50940993408676},-28.830960795166902]
[19.391999999999999,null,28939,92576.55,{"$f":"IF(D109<>0,('Modelo Atmosférico'!$B$9/'Modelo Atmosférico'!$B$10)*((POWER(D109/'Modelo Atmosférico'!$B$14,(-'Modelo Atmosférico'!$B$11*'Modelo Atmosférico'!$B$10)/('Modelo Atmosférico'!$B$12*'Modelo Atmosférico'!$B$13)))-1),0)","v":755.10895469373872},-25.23141603551494]
[19.584,null,156,170746.47,{"$f":"IF(D110<>0,('Modelo Atmosférico'!$B$9/'Modelo Atmosférico'!$B$10)*((POWER(D110/'Modelo Atmosférico'!$B$14,(-'Modelo Atmosférico'!$B$11*'Modelo Atmosférico'!$B$10)/('Modelo Atmosférico'!$B$12*'Modelo Atmosférico'!$B$13)))-1),0)","v":-4627.4484515603481},-5407.7888222896017]
[19.776,null,28940,92573.88,{"$f":"IF(D111<>0,('Modelo Atmosférico'!$B$9/'Modelo Atmosférico'!$B$10)*((POWER(D111/'Modelo Atmosférico'!$B$14,(-'Modelo Atmosférico'!$B$11*'Modelo Atmosférico'!$B$10)/('Modelo Atmosférico'!$B$12*'Modelo Atmosférico'!$B$13)))-1),0)","v":755.34807375497053},-24.992296974283136]
[19.968,null,28933,92592.63,{"$f":"IF(D112<>0,('Modelo Atmosférico'!$B$9/'Modelo Atmosférico'!$B$10)*((POWER(D112/'Modelo Atmosférico'!$B$14,(-'Modelo Atmosférico'!$B$11*'Modelo Atmosférico'!$B$10)/('Modelo Atmosférico'!$B$12*'Modelo Atmosférico'!$B$13)))-1),0)","v":753.66898493986207},-26.671385789391593]
[20.16,null,28934,92589.95,{"$f":"IF(D113<>0,('Modelo Atmosférico'!$B$9/'Modelo Atmosférico'!$B$10)*((POWER(D113/'Modelo Atmosférico'!$B$14,(-'Modelo Atmosférico'!$B$11*'Modelo Atmosférico'!$B$10)/('Modelo Atmosférico'!$B$12*'Modelo Atmosférico'!$B$13)))-1),0)","v":753.90896583619997},-26.431404893053696]
[20.352,null,28932,92595.31,{"$f":"IF(D114<>0,('Modelo Atmosférico'!$B$9/'Modelo Atmosférico'!$B$10)*((POWER(D114/'Modelo Atmosférico'!$B$14,(-'Modelo Atmosférico'!$B$11*'Modelo Atmosférico'!$B$10)/('Modelo Atmosférico'!$B$12*'Modelo Atmosférico'!$B$13)))-1),0)","v":753.429009667895},-26.911361061358662]
[20.544,null,28932,92595.31,{"$f":"IF(D115<>0,('Modelo Atmosférico'!$B$9/'Modelo Atmosférico'!$B$10)*((POWER(D115/'Modelo Atmosférico'!$B$14,(-'Modelo Atmosférico'!$B$11*'Modelo Atmosférico'!$B$10)/('Modelo Atmosférico'!$B$12*'Modelo Atmosférico'!$B$13)))-1),0)","v":753.429009667895},-26.911361061358662]
[20.736000000000001,null,28929,92603.36,{"$f":"IF(D116<>0,('Modelo Atmosférico'!$B$9/'Modelo Atmosférico'!$B$10)*((POWER(D116/'Modelo Atmosférico'!$B$14,(-'Modelo Atmosférico'!$B$11*'Modelo Atmosférico'!$B$10)/('Modelo Atmosférico'!$B$12*'Modelo Atmosférico'!$B$13)))-1),0)","v":752.70822223862001},-27.632148490633654]
[20.928000000000001,null,28929,92603.36,{"$f":"IF(D117<>0,('Modelo Atmosférico'!$B$9/'Modelo Atmosférico'!$B$10)*((POWER(D117/'Modelo Atmosférico'!$B$14,(-'Modelo Atmosférico'!$B$11*'Modelo Atmosférico'!$B$10)/('Modelo Atmosférico'!$B$12*'Modelo Atmosférico'!$B$13)))-1),0)","v":752.70822223862001},-27.632148490633654]
[21.12,null,28928,92606.03,{"$f":"IF(D118<>0,('Modelo Atmosférico'!$B$9/'Modelo Atmosférico'!$B$10)*((POWER(D118/'Modelo Atmosférico'!$B$14,(-'Modelo Atmosférico'!$B$11*'Modelo Atmosférico'!$B$10)/('Modelo Atmosférico'!$B$12*'Modelo Atmosférico'!$B$13)))-1),0)","v":752.46916481781898},-27.871205911434686]
[21.312000000000001,null,28928,92606.03,{"$f":"IF(D119<>0,('Modelo Atmosférico'!$B$9/'Modelo Atmosférico'!$B$10)*((POWER(D119/'Modelo Atmosférico'!$B$14,(-'Modelo Atmosférico'!$B$11*'Modelo Atmosférico'!$B$10)/('Modelo Atmosférico'!$B$12*'Modelo Atmosférico'!$B$13)))-1),0)","v":752.46916481781898},-27.871205911434686]
[21.504000000000001,null,28930,92600.67,{"$f":"IF(D120<>0,('Modelo Atmosférico'!$B$9/'Modelo Atmosférico'!$B$10)*((POWER(D120/'Modelo Atmosférico'!$B$14,(-'Modelo Atmosférico'!$B$11*'Modelo Atmosférico'!$B$10)/('Modelo Atmosférico'!$B$12*'Modelo Atmosférico'!$B$13)))-1),0)","v":752.94907599588714},-27.391294733366522]
[21.696000000000002,null,28927,92608.72,{"$f":"IF(D121<>0,('Modelo Atmosférico'!$B$9/'Modelo Atmosférico'!$B$10)*((POWER(D121/'Modelo Atmosférico'!$B$14,(-'Modelo Atmosférico'!$B$11*'Modelo Atmosférico'!$B$10)/('Modelo Atmosférico'!$B$12*'Modelo Atmosférico'!$B$13)))-1),0)","v":752.22832234860323},-28.112048380650435]
[21.888000000000002,null,28927,92608.72,{"$f":"IF(D122<>0,('Modelo Atmosférico'!$B$9/'Modelo Atmosférico'!$B$10)*((POWER(D122/'Modelo Atmosférico'!$B$14,(-'Modelo Atmosférico'!$B$11*'Modelo Atmosférico'!$B$10)/('Modelo Atmosférico'!$B$12*'Modelo Atmosférico'!$B$13)))-1),0)","v":752.22832234860323},-28.112048380650435]
[22.08,null,28928,92606.03,{"$f":"IF(D123<>0,('Modelo Atmosférico'!$B$9/'Modelo Atmosférico'!$B$10)*((POWER(D123/'Modelo Atmosférico'!$B$14,(-'Modelo Atmosférico'!$B$11*'Modelo Atmosférico'!$B$10)/('Modelo Atmosférico'!$B$12*'Modelo Atmosférico'!$B$13)))-1),0)","v":752.46916481781898},-27.871205911434686]
[22.271999999999998,null,28927,92608.72,{"$f":"IF(D124<>0,('Modelo Atmosférico'!$B$9/'Modelo Atmosférico'!$B$10)*((POWER(D124/'Modelo Atmosférico'!$B$14,(-'Modelo Atmosférico'!$B$11*'Modelo Atmosférico'!$B$10)/('Modelo Atmosférico'!$B$12*'Modelo Atmosférico'!$B$13)))-1),0)","v":752.22832234860323},-28.112048380650435]
[22.463999999999999,null,28924,92616.75,{"$f":"IF(D125<>0,('Modelo Atmosférico'!$B$9/'Modelo Atmosférico'!$B$10)*((POWER(D125/'Modelo Atmosférico'!$B$14,(-'Modelo Atmosférico'!$B$11*'Modelo Atmosférico'!$B$10)/('Modelo Atmosférico'!$B$12*'Modelo Atmosférico'!$B$13)))-1),0)","v":751.50940993408676},-28.830960795166902]
[22.655999999999999,null,28925,92614.080000000002,{"$f":"IF(D126<>0,('Modelo Atmosférico'!$B$9/'Modelo Atmosférico'!$B$10)*((POWER(D126/'Modelo Atmosférico'!$B$14,(-'Modelo Atmosférico'!$B$11*'Modelo Atmosférico'!$B$10)/('Modelo Atmosférico'!$B$12*'Modelo Atmosférico'!$B$13)))-1),0)","v":751.74844494898753},-28.591925780266138]
[22.847999999999999,null,28923,92619.44,{"$f":"IF(D127<>0,('Modelo Atmosférico'!$B$9/'Modelo Atmosférico'!$B$10)*((POWER(D127/'Modelo Atmosférico'!$B$14,(-'Modelo Atmosférico'!$B$11*'Modelo Atmosférico'!$B$10)/('Modelo Atmosférico'!$B$12*'Modelo Atmosférico'!$B$13)))-1),0)","v":751.26859003742015},-29.07178069183351]
[23.04,null,28925,92614.080000000002,{"$f":"IF(D128<>0,('Modelo Atmosférico'!$B$9/'Modelo Atmosférico'!$B$10)*((POWER(D128/'Modelo Atmosférico'!$B$14,(-'Modelo Atmosférico'!$B$11*'Modelo Atmosférico'!$B$10)/('Modelo Atmosférico'!$B$12*'Modelo Atmosférico'!$B$13)))-1),0)","v":751.74844494898753},-28.591925780266138]
[23.231999999999999,null,28925,92614.080000000002,{"$f":"IF(D129<>0,('Modelo Atmosférico'!$B$9/'Modelo Atmosférico'!$B$10)*((POWER(D129/'Modelo Atmosférico'!$B$14,(-'Modelo Atmosférico'!$B$11*'Modelo Atmosférico'!$B$10)/('Modelo Atmosférico'!$B$12*'Modelo Atmosférico'!$B$13)))-1),0)","v":751.74844494898753},-28.591925780266138]
[23.423999999999999,null,28925,92614.080000000002,{"$f":"IF(D130<>0,('Modelo Atmosférico'!$B$9/'Modelo Atmosférico'!$B$10)*((POWER(D130/'Modelo Atmosférico'!$B$14,(-'Modelo Atmosférico'!$B$11*'Modelo Atmosférico'!$B$10)/('Modelo Atmosférico'!$B$12*'Modelo Atmosférico'!$B$13)))-1),0)","v":751.74844494898753},-28.591925780266138]
[23.616,null,28924,92616.75,{"$f":"IF(D131<>0,('Modelo Atmosférico'!$B$9/'Modelo Atmosférico'!$B$10)*((POWER(D131/'Modelo Atmosférico'!$B$14,(-'Modelo Atmosférico'!$B$11*'Modelo Atmosférico'!$B$10)/('Modelo Atmosférico'!$B$12*'Modelo Atmosférico'!$B$13)))-1),0)","v":751.50940993408676},-28.830960795166902]
[23.808,null,28925,92614.080000000002,{"$f":"IF(D132<>0,('Modelo Atmosférico'!$B$9/'Modelo Atmosférico'!$B$10)*((POWER(D132/'Modelo Atmosférico'!$B$14,(-'Modelo Atmosférico'!$B$11*'Modelo Atmosférico'!$B$10)/('Modelo Atmosférico'!$B$12*'Modelo Atmosférico'!$B$13)))-1),0)","v":751.74844494898753},-28.591925780266138]
[24,null,null,null,{"$f":"IF(D133<>0,('Modelo Atmosférico'!$B$9/'Modelo Atmosférico'!$B$10)*((POWER(D133/'Modelo Atmosférico'!$B$14,(-'Modelo Atmosférico'!$B$11*'Modelo Atmosférico'!$B$10)/('Modelo Atmosférico'!$B$12*'Modelo Atmosférico'!$B$13)))-1),0)","v":0},0]
[24.192,null,null,null,{"$f":"IF(D134<>0,('Modelo Atmosférico'!$B$9/'Modelo Atmosférico'!$B$10)*((POWER(D134/'Modelo Atmosférico'!$B$14,(-'Modelo Atmosférico'!$B$11*'Modelo Atmosférico'!$B$10)/('Modelo Atmosférico'!$B$12*'Modelo Atmosférico'!$B$13)))-1),0)","v":0},0]
[24.384,null,null,null,{"$f":"IF(D135<>0,('Modelo Atmosférico'!$B$9/'Modelo Atmosférico'!$B$10)*((POWER(D135/'Modelo Atmosférico'!$B$14,(-'Modelo Atmosférico'!$B$11*'Modelo Atmosférico'!$B$10)/('Modelo Atmosférico'!$B$12*'Modelo Atmosférico'!$B$13)))-1),0)","v":0},0]
[24.576000000000001,null,null,null,{"$f":"IF(D136<>0,('Modelo Atmosférico'!$B$9/'Modelo Atmosférico'!$B$10)*((POWER(D136/'Modelo Atmosférico'!$B$14,(-'Modelo Atmosférico'!$B$11*'Modelo Atmosférico'!$B$10)/('Modelo Atmosférico'!$B$12*'Modelo Atmosférico'!$B$13)))-1),0)","v":0},0]
[24.768000000000001,null,null,null,{"$f":"IF(D137<>0,('Modelo Atmosférico'!$B$9/'Modelo Atmosférico'!$B$10)*((POWER(D137/'Modelo Atmosférico'!$B$14,(-'Modelo Atmosférico'!$B$11*'Modelo Atmosférico'!$B$10)/('Modelo Atmosférico'!$B$12*'Modelo Atmosférico'!$B$13)))-1),0)","v":0},0]
[24.96,null,null,null,{"$f":"IF(D138<>0,('Modelo Atmosférico'!$B$9/'Modelo Atmosférico'!$B$10)*((POWER(D138/'Modelo Atmosférico'!$B$14,(-'Modelo Atmosférico'!$B$11*'Modelo Atmosférico'!$B$10)/('Modelo Atmosférico'!$B$12*'Modelo Atmosférico'!$B$13)))-1),0)","v":0},0]
[25.152000000000001,null,null,null,{"$f":"IF(D139<>0,('Modelo Atmosférico'!$B$9/'Modelo Atmosférico'!$B$10)*((POWER(D139/'Modelo Atmosférico'!$B$14,(-'Modelo Atmosférico'!$B$11*'Modelo Atmosférico'!$B$10)/('Modelo Atmosférico'!$B$12*'Modelo Atmosférico'!$B$13)))-1),0)","v":0},0]
[25.344000000000001,null,null,null,{"$f":"IF(D140<>0,('Modelo Atmosférico'!$B$9/'Modelo Atmosférico'!$B$10)*((POWER(D140/'Modelo Atmosférico'!$B$14,(-'Modelo Atmosférico'!$B$11*'Modelo Atmosférico'!$B$10)/('Modelo Atmosférico'!$B$12*'Modelo Atmosférico'!$B$13)))-1),0)","v":0},0]
[25.536000000000001,null,null,null,{"$f":"IF(D141<>0,('Modelo Atmosférico'!$B$9/'Modelo Atmosférico'!$B$10)*((POWER(D141/'Modelo Atmosférico'!$B$14,(-'Modelo Atmosférico'!$B$11*'Modelo Atmosférico'!$B$10)/('Modelo Atmosférico'!$B$12*'Modelo Atmosférico'!$B$13)))-1),0)","v":0},0]
[25.728000000000002,null,null,null,{"$f":"IF(D142<>0,('Modelo Atmosférico'!$B$9/'Modelo Atmosférico'!$B$10)*((POWER(D142/'Modelo Atmosférico'!$B$14,(-'Modelo Atmosférico'!$B$11*'Modelo Atmosférico'!$B$10)/('Modelo Atmosférico'!$B$12*'Modelo Atmosférico'!$B$13)))-1),0)","v":0},0]
[25.92,null,null,null,{"$f":"IF(D143<>0,('Modelo Atmosférico'!$B$9/'Modelo Atmosférico'!$B$10)*((POWER(D143/'Modelo Atmosférico'!$B$14,(-'Modelo Atmosférico'!$B$11*'Modelo Atmosférico'!$B$10)/('Modelo Atmosférico'!$B$12*'Modelo Atmosférico'!$B$13)))-1),0)","v":0},0]
[26.111999999999998,null,null,null,{"$f":"IF(D144<>0,('Modelo Atmosférico'!$B$9/'Modelo Atmosférico'!$B$10)*((POWER(D144/'Modelo Atmosférico'!$B$14,(-'Modelo Atmosférico'!$B$11*'Modelo Atmosférico'!$B$10)/('Modelo Atmosférico'!$B$12*'Modelo Atmosférico'!$B$13)))-1),0)","v":0},0]
[26.303999999999998,null,null,null,{"$f":"IF(D145<>0,('Modelo Atmosférico'!$B$9/'Modelo Atmosférico'!$B$10)*((POWER(D145/'Modelo Atmosférico'!$B$14,(-'Modelo Atmosférico'!$B$11*'Modelo Atmosférico'!$B$10)/('Modelo Atmosférico'!$B$12*'Modelo Atmosférico'!$B$13)))-1),0)","v":0},0]
[26.495999999999999,null,null,null,{"$f":"IF(D146<>0,('Modelo Atmosférico'!$B$9/'Modelo Atmosférico'!$B$10)*((POWER(D146/'Modelo Atmosférico'!$B$14,(-'Modelo Atmosférico'!$B$11*'Modelo Atmosférico'!$B$10)/('Modelo Atmosférico'!$B$12*'Modelo Atmosférico'!$B$13)))-1),0)","v":0},0]
[26.687999999999999,null,null,null,{"$f":"IF(D147<>0,('Modelo Atmosférico'!$B$9/'Modelo Atmosférico'!$B$10)*((POWER(D147/'Modelo Atmosférico'!$B$14,(-'Modelo Atmosférico'!$B$11*'Modelo Atmosférico'!$B$10)/('Modelo Atmosférico'!$B$12*'Modelo Atmosférico'!$B$13)))-1),0)","v":0},0]
[26.88,null,null,null,{"$f":"IF(D148<>0,('Modelo Atmosférico'!$B$9/'Modelo Atmosférico'!$B$10)*((POWER(D148/'Modelo Atmosférico'!$B$14,(-'Modelo Atmosférico'!$B$11*'Modelo Atmosférico'!$B$10)/('Modelo Atmosférico'!$B$12*'Modelo Atmosférico'!$B$13)))-1),0)","v":0},0]
[27.071999999999999,null,null,null,{"$f":"IF(D149<>0,('Modelo Atmosférico'!$B$9/'Modelo Atmosférico'!$B$10)*((POWER(D149/'Modelo Atmosférico'!$B$14,(-'Modelo Atmosférico'!$B$11*'Modelo Atmosférico'!$B$10)/('Modelo Atmosférico'!$B$12*'Modelo Atmosférico'!$B$13)))-1),0)","v":0},0]
[27.263999999999999,null,null,null,{"$f":"IF(D150<>0,('Modelo Atmosférico'!$B$9/'Modelo Atmosférico'!$B$10)*((POWER(D150/'Modelo Atmosférico'!$B$14,(-'Modelo Atmosférico'!$B$11*'Modelo Atmosférico'!$B$10)/('Modelo Atmosférico'!$B$12*'Modelo Atmosférico'!$B$13)))-1),0)","v":0},0]
[27.456,null,null,null,{"$f":"IF(D151<>0,('Modelo Atmosférico'!$B$9/'Modelo Atmosférico'!$B$10)*((POWER(D151/'Modelo Atmosférico'!$B$14,(-'Modelo Atmosférico'!$B$11*'Modelo Atmosférico'!$B$10)/('Modelo Atmosférico'!$B$12*'Modelo Atmosférico'!$B$13)))-1),0)","v":0},0]
[27.648,null,null,null,{"$f":"IF(D152<>0,('Modelo Atmosférico'!$B$9/'Modelo Atmosférico'!$B$10)*((POWER(D152/'Modelo Atmosférico'!$B$14,(-'Modelo Atmosférico'!$B$11*'Modelo Atmosférico'!$B$10)/('Modelo Atmosférico'!$B$12*'Modelo Atmosférico'!$B$13)))-1),0)","v":0},0]
[27.84,null,null,null,{"$f":"IF(D153<>0,('Modelo Atmosférico'!$B$9/'Modelo Atmosférico'!$B$10)*((POWER(D153/'Modelo Atmosférico'!$B$14,(-'Modelo Atmosférico'!$B$11*'Modelo Atmosférico'!$B$10)/('Modelo Atmosférico'!$B$12*'Modelo Atmosférico'!$B$13)))-1),0)","v":0},0]
[28.032,null,null,null,{"$f":"IF(D154<>0,('Modelo Atmosférico'!$B$9/'Modelo Atmosférico'!$B$10)*((POWER(D154/'Modelo Atmosférico'!$B$14,(-'Modelo Atmosférico'!$B$11*'Modelo Atmosférico'!$B$10)/('Modelo Atmosférico'!$B$12*'Modelo Atmosférico'!$B$13)))-1),0)","v":0},0]
[28.224,null,null,null,{"$f":"IF(D155<>0,('Modelo Atmosférico'!$B$9/'Modelo Atmosférico'!$B$10)*((POWER(D155/'Modelo Atmosférico'!$B$14,(-'Modelo Atmosférico'!$B$11*'Modelo Atmosférico'!$B$10)/('Modelo Atmosférico'!$B$12*'Modelo Atmosférico'!$B$13)))-1),0)","v":0},0]
[28.416,null,null,null,{"$f":"IF(D156<>0,('Modelo Atmosférico'!$B$9/'Modelo Atmosférico'!$B$10)*((POWER(D156/'Modelo Atmosférico'!$B$14,(-'Modelo Atmosférico'!$B$11*'Modelo Atmosférico'!$B$10)/('Modelo Atmosférico'!$B$12*'Modelo Atmosférico'!$B$13)))-1),0)","v":0},0]
[28.608000000000001,null,null,null,{"$f":"IF(D157<>0,('Modelo Atmosférico'!$B$9/'Modelo Atmosférico'!$B$10)*((POWER(D157/'Modelo Atmosférico'!$B$14,(-'Modelo Atmosférico'!$B$11*'Modelo Atmosférico'!$B$10)/('Modelo Atmosférico'!$B$12*'Modelo Atmosférico'!$B$13)))-1),0)","v":0},0]
[28.8,null,null,null,{"$f":"IF(D158<>0,('Modelo Atmosférico'!$B$9/'Modelo Atmosférico'!$B$10)*((POWER(D158/'Modelo Atmosférico'!$B$14,(-'Modelo Atmosférico'!$B$11*'Modelo Atmosférico'!$B$10)/('Modelo Atmosférico'!$B$12*'Modelo Atmosférico'!$B$13)))-1),0)","v":0},0]
[28.992000000000001,null,null,null,{"$f":"IF(D159<>0,('Modelo Atmosférico'!$B$9/'Modelo Atmosférico'!$B$10)*((POWER(D159/'Modelo Atmosférico'!$B$14,(-'Modelo Atmosférico'!$B$11*'Modelo Atmosférico'!$B$10)/('Modelo Atmosférico'!$B$12*'Modelo Atmosférico'!$B$13)))-1),0)","v":0},0]
[29.184000000000001,null,null,null,{"$f":"IF(D160<>0,('Modelo Atmosférico'!$B$9/'Modelo Atmosférico'!$B$10)*((POWER(D160/'Modelo Atmosférico'!$B$14,(-'Modelo Atmosférico'!$B$11*'Modelo Atmosférico'!$B$10)/('Modelo Atmosférico'!$B$12*'Modelo Atmosférico'!$B$13)))-1),0)","v":0},0]
[29.376000000000001,null,null,null,{"$f":"IF(D161<>0,('Modelo Atmosférico'!$B$9/'Modelo Atmosférico'!$B$10)*((POWER(D161/'Modelo Atmosférico'!$B$14,(-'Modelo Atmosférico'!$B$11*'Modelo Atmosférico'!$B$10)/('Modelo Atmosférico'!$B$12*'Modelo Atmosférico'!$B$13)))-1),0)","v":0},0]
[29.568000000000001,null,null,null,{"$f":"IF(D162<>0,('Modelo Atmosférico'!$B$9/'Modelo Atmosférico'!$B$10)*((POWER(D162/'Modelo Atmosférico'!$B$14,(-'Modelo Atmosférico'!$B$11*'Modelo Atmosférico'!$B$10)/('Modelo Atmosférico'!$B$12*'Modelo Atmosférico'!$B$13)))-1),0)","v":0},0]
[29.76,null,null,null,{"$f":"IF(D163<>0,('Modelo Atmosférico'!$B$9/'Modelo Atmosférico'!$B$10)*((POWER(D163/'Modelo Atmosférico'!$B$14,(-'Modelo Atmosférico'!$B$11*'Modelo Atmosférico'!$B$10)/('Modelo Atmosférico'!$B$12*'Modelo Atmosférico'!$B$13)))-1),0)","v":0},{"$f":"IF(D163<>0,E163-$E$3,0)","v":0}]
[29.952000000000002,null,null,null,{"$f":"IF(D164<>0,('Modelo Atmosférico'!$B$9/'Modelo Atmosférico'!$B$10)*((POWER(D164/'Modelo Atmosférico'!$B$14,(-'Modelo Atmosférico'!$B$11*'Modelo Atmosférico'!$B$10)/('Modelo Atmosférico'!$B$12*'Modelo Atmosférico'!$B$13)))-1),0)","v":0},0]
[30.143999999999998,null,null,null,{"$f":"IF(D165<>0,('Modelo Atmosférico'!$B$9/'Modelo Atmosférico'!$B$10)*((POWER(D165/'Modelo Atmosférico'!$B$14,(-'Modelo Atmosférico'!$B$11*'Modelo Atmosférico'!$B$10)/('Modelo Atmosférico'!$B$12*'Modelo Atmosférico'!$B$13)))-1),0)","v":0},0]
[30.335999999999999,null,null,null,{"$f":"IF(D166<>0,('Modelo Atmosférico'!$B$9/'Modelo Atmosférico'!$B$10)*((POWER(D166/'Modelo Atmosférico'!$B$14,(-'Modelo Atmosférico'!$B$11*'Modelo Atmosférico'!$B$10)/('Modelo Atmosférico'!$B$12*'Modelo Atmosférico'!$B$13)))-1),0)","v":0},0]
[30.527999999999999,null,null,null,{"$f":"IF(D167<>0,('Modelo Atmosférico'!$B$9/'Modelo Atmosférico'!$B$10)*((POWER(D167/'Modelo Atmosférico'!$B$14,(-'Modelo Atmosférico'!$B$11*'Modelo Atmosférico'!$B$10)/('Modelo Atmosférico'!$B$12*'Modelo Atmosférico'!$B$13)))-1),0)","v":0},0]
[30.72,null,null,null,{"$f":"IF(D168<>0,('Modelo Atmosférico'!$B$9/'Modelo Atmosférico'!$B$10)*((POWER(D168/'Modelo Atmosférico'!$B$14,(-'Modelo Atmosférico'!$B$11*'Modelo Atmosférico'!$B$10)/('Modelo Atmosférico'!$B$12*'Modelo Atmosférico'!$B$13)))-1),0)","v":0},0]
[30.911999999999999,null,null,null,{"$f":"IF(D169<>0,('Modelo Atmosférico'!$B$9/'Modelo Atmosférico'!$B$10)*((POWER(D169/'Modelo Atmosférico'!$B$14,(-'Modelo Atmosférico'!$B$11*'Modelo Atmosférico'!$B$10)/('Modelo Atmosférico'!$B$12*'Modelo Atmosférico'!$B$13)))-1),0)","v":0},0]
[31.103999999999999,null,null,null,{"$f":"IF(D170<>0,('Modelo Atmosférico'!$B$9/'Modelo Atmosférico'!$B$10)*((POWER(D170/'Modelo Atmosférico'!$B$14,(-'Modelo Atmosférico'!$B$11*'Modelo Atmosférico'!$B$10)/('Modelo Atmosférico'!$B$12*'Modelo Atmosférico'!$B$13)))-1),0)","v":0},0]
[31.295999999999999,null,null,null,{"$f":"IF(D171<>0,('Modelo Atmosférico'!$B$9/'Modelo Atmosférico'!$B$10)*((POWER(D171/'Modelo Atmosférico'!$B$14,(-'Modelo Atmosférico'!$B$11*'Modelo Atmosférico'!$B$10)/('Modelo Atmosférico'!$B$12*'Modelo Atmosférico'!$B$13)))-1),0)","v":0},0]
[31.488,null,null,null,{"$f":"IF(D172<>0,('Modelo Atmosférico'!$B$9/'Modelo Atmosférico'!$B$10)*((POWER(D172/'Modelo Atmosférico'!$B$14,(-'Modelo Atmosférico'!$B$11*'Modelo Atmosférico'!$B$10)/('Modelo Atmosférico'!$B$12*'Modelo Atmosférico'!$B$13)))-1),0)","v":0},0]
[31.68,null,null,null,{"$f":"IF(D173<>0,('Modelo Atmosférico'!$B$9/'Modelo Atmosférico'!$B$10)*((POWER(D173/'Modelo Atmosférico'!$B$14,(-'Modelo Atmosférico'!$B$11*'Modelo Atmosférico'!$B$10)/('Modelo Atmosférico'!$B$12*'Modelo Atmosférico'!$B$13)))-1),0)","v":0},0]
[31.872,null,null,null,{"$f":"IF(D174<>0,('Modelo Atmosférico'!$B$9/'Modelo Atmosférico'!$B$10)*((POWER(D174/'Modelo Atmosférico'!$B$14,(-'Modelo Atmosférico'!$B$11*'Modelo Atmosférico'!$B$10)/('Modelo Atmosférico'!$B$12*'Modelo Atmosférico'!$B$13)))-1),0)","v":0},0]
[32.064,null,null,null,{"$f":"IF(D175<>0,('Modelo Atmosférico'!$B$9/'Modelo Atmosférico'!$B$10)*((POWER(D175/'Modelo Atmosférico'!$B$14,(-'Modelo Atmosférico'!$B$11*'Modelo Atmosférico'!$B$10)/('Modelo Atmosférico'!$B$12*'Modelo Atmosférico'!$B$13)))-1),0)","v":0},0]
[32.256,null,null,null,{"$f":"IF(D176<>0,('Modelo Atmosférico'!$B$9/'Modelo Atmosférico'!$B$10)*((POWER(D176/'Modelo Atmosférico'!$B$14,(-'Modelo Atmosférico'!$B$11*'Modelo Atmosférico'!$B$10)/('Modelo Atmosférico'!$B$12*'Modelo Atmosférico'!$B$13)))-1),0)","v":0},0]
[32.448,null,null,null,{"$f":"IF(D177<>0,('Modelo Atmosférico'!$B$9/'Modelo Atmosférico'!$B$10)*((POWER(D177/'Modelo Atmosférico'!$B$14,(-'Modelo Atmosférico'!$B$11*'Modelo Atmosférico'!$B$10)/('Modelo Atmosférico'!$B$12*'Modelo Atmosférico'!$B$13)))-1),0)","v":0},0]
[32.64,null,null,null,{"$f":"IF(D178<>0,('Modelo Atmosférico'!$B$9/'Modelo Atmosférico'!$B$10)*((POWER(D178/'Modelo Atmosférico'!$B$14,(-'Modelo Atmosférico'!$B$11*'Modelo Atmosférico'!$B$10)/('Modelo Atmosférico'!$B$12*'Modelo Atmosférico'!$B$13)))-1),0)","v":0},0]
[32.832000000000001,null,null,null,{"$f":"IF(D179<>0,('Modelo Atmosférico'!$B$9/'Modelo Atmosférico'!$B$10)*((POWER(D179/'Modelo Atmosférico'!$B$14,(-'Modelo Atmosférico'!$B$11*'Modelo Atmosférico'!$B$10)/('Modelo Atmosférico'!$B$12*'Modelo Atmosférico'!$B$13)))-1),0)","v":0},0]
[33.024000000000001,null,null,null,{"$f":"IF(D180<>0,('Modelo Atmosférico'!$B$9/'Modelo Atmosférico'!$B$10)*((POWER(D180/'Modelo Atmosférico'!$B$14,(-'Modelo Atmosférico'!$B$11*'Modelo Atmosférico'!$B$10)/('Modelo Atmosférico'!$B$12*'Modelo Atmosférico'!$B$13)))-1),0)","v":0},0]
[33.216000000000001,null,null,null,{"$f":"IF(D181<>0,('Modelo Atmosférico'!$B$9/'Modelo Atmosférico'!$B$10)*((POWER(D181/'Modelo Atmosférico'!$B$14,(-'Modelo Atmosférico'!$B$11*'Modelo Atmosférico'!$B$10)/('Modelo Atmosférico'!$B$12*'Modelo Atmosférico'!$B$13)))-1),0)","v":0},0]
[33.408000000000001,null,null,null,{"$f":"IF(D182<>0,('Modelo Atmosférico'!$B$9/'Modelo Atmosférico'!$B$10)*((POWER(D182/'Modelo Atmosférico'!$B$14,(-'Modelo Atmosférico'!$B$11*'Modelo Atmosférico'!$B$10)/('Modelo Atmosférico'!$B$12*'Modelo Atmosférico'!$B$13)))-1),0)","v":0},0]
[33.6,null,null,null,{"$f":"IF(D183<>0,('Modelo Atmosférico'!$B$9/'Modelo Atmosférico'!$B$10)*((POWER(D183/'Modelo Atmosférico'!$B$14,(-'Modelo Atmosférico'!$B$11*'Modelo Atmosférico'!$B$10)/('Modelo Atmosférico'!$B$12*'Modelo Atmosférico'!$B$13)))-1),0)","v":0},0]
[33.792000000000002,null,null,null,{"$f":"IF(D184<>0,('Modelo Atmosférico'!$B$9/'Modelo Atmosférico'!$B$10)*((POWER(D184/'Modelo Atmosférico'!$B$14,(-'Modelo Atmosférico'!$B$11*'Modelo Atmosférico'!$B$10)/('Modelo Atmosférico'!$B$12*'Modelo Atmosférico'!$B$13)))-1),0)","v":0},0]
[33.984000000000002,null,null,null,{"$f":"IF(D185<>0,('Modelo Atmosférico'!$B$9/'Modelo Atmosférico'!$B$10)*((POWER(D185/'Modelo Atmosférico'!$B$14,(-'Modelo Atmosférico'!$B$11*'Modelo Atmosférico'!$B$10)/('Modelo Atmosférico'!$B$12*'Modelo Atmosférico'!$B$13)))-1),0)","v":0},0]
[34.176000000000002,null,null,null,{"$f":"IF(D186<>0,('Modelo Atmosférico'!$B$9/'Modelo Atmosférico'!$B$10)*((POWER(D186/'Modelo Atmosférico'!$B$14,(-'Modelo Atmosférico'!$B$11*'Modelo Atmosférico'!$B$10)/('Modelo Atmosférico'!$B$12*'Modelo Atmosférico'!$B$13)))-1),0)","v":0},0]
[34.368000000000002,null,null,null,{"$f":"IF(D187<>0,('Modelo Atmosférico'!$B$9/'Modelo Atmosférico'!$B$10)*((POWER(D187/'Modelo Atmosférico'!$B$14,(-'Modelo Atmosférico'!$B$11*'Modelo Atmosférico'!$B$10)/('Modelo Atmosférico'!$B$12*'Modelo Atmosférico'!$B$13)))-1),0)","v":0},0]
[34.56,null,null,null,{"$f":"IF(D188<>0,('Modelo Atmosférico'!$B$9/'Modelo Atmosférico'!$B$10)*((POWER(D188/'Modelo Atmosférico'!$B$14,(-'Modelo Atmosférico'!$B$11*'Modelo Atmosférico'!$B$10)/('Modelo Atmosférico'!$B$12*'Modelo Atmosférico'!$B$13)))-1),0)","v":0},0]
[34.752000000000002,null,null,null,{"$f":"IF(D189<>0,('Modelo Atmosférico'!$B$9/'Modelo Atmosférico'!$B$10)*((POWER(D189/'Modelo Atmosférico'!$B$14,(-'Modelo Atmosférico'!$B$11*'Modelo Atmosférico'!$B$10)/('Modelo Atmosférico'!$B$12*'Modelo Atmosférico'!$B$13)))-1),0)","v":0},0]
[34.944000000000003,null,null,null,{"$f":"IF(D190<>0,('Modelo Atmosférico'!$B$9/'Modelo Atmosférico'!$B$10)*((POWER(D190/'Modelo Atmosférico'!$B$14,(-'Modelo Atmosférico'!$B$11*'Modelo Atmosférico'!$B$10)/('Modelo Atmosférico'!$B$12*'Modelo Atmosférico'!$B$13)))-1),0)","v":0},0]
[35.136000000000003,null,null,null,{"$f":"IF(D191<>0,('Modelo Atmosférico'!$B$9/'Modelo Atmosférico'!$B$10)*((POWER(D191/'Modelo Atmosférico'!$B$14,(-'Modelo Atmosférico'!$B$11*'Modelo Atmosférico'!$B$10)/('Modelo Atmosférico'!$B$12*'Modelo Atmosférico'!$B$13)))-1),0)","v":0},0]
[35.328000000000003,null,null,null,{"$f":"IF(D192<>0,('Modelo Atmosférico'!$B$9/'Modelo Atmosférico'!$B$10)*((POWER(D192/'Modelo Atmosférico'!$B$14,(-'Modelo Atmosférico'!$B$11*'Modelo Atmosférico'!$B$10)/('Modelo Atmosférico'!$B$12*'Modelo Atmosférico'!$B$13)))-1),0)","v":0},0]
[35.520000000000003,null,null,null,{"$f":"IF(D193<>0,('Modelo Atmosférico'!$B$9/'Modelo Atmosférico'!$B$10)*((POWER(D193/'Modelo Atmosférico'!$B$14,(-'Modelo Atmosférico'!$B$11*'Modelo Atmosférico'!$B$10)/('Modelo Atmosférico'!$B$12*'Modelo Atmosférico'!$B$13)))-1),0)","v":0},0]
[35.712000000000003,null,null,null,{"$f":"IF(D194<>0,('Modelo Atmosférico'!$B$9/'Modelo Atmosférico'!$B$10)*((POWER(D194/'Modelo Atmosférico'!$B$14,(-'Modelo Atmosférico'!$B$11*'Modelo Atmosférico'!$B$10)/('Modelo Atmosférico'!$B$12*'Modelo Atmosférico'!$B$13)))-1),0)","v":0},0]
[35.904000000000003,null,null,null,{"$f":"IF(D195<>0,('Modelo Atmosférico'!$B$9/'Modelo Atmosférico'!$B$10)*((POWER(D195/'Modelo Atmosférico'!$B$14,(-'Modelo Atmosférico'!$B$11*'Modelo Atmosférico'!$B$10)/('Modelo Atmosférico'!$B$12*'Modelo Atmosférico'!$B$13)))-1),0)","v":0},0]
[36.095999999999997,null,null,null,{"$f":"IF(D196<>0,('Modelo Atmosférico'!$B$9/'Modelo Atmosférico'!$B$10)*((POWER(D196/'Modelo Atmosférico'!$B$14,(-'Modelo Atmosférico'!$B$11*'Modelo Atmosférico'!$B$10)/('Modelo Atmosférico'!$B$12*'Modelo Atmosférico'!$B$13)))-1),0)","v":0},0]
[36.287999999999997,null,null,null,{"$f":"IF(D197<>0,('Modelo Atmosférico'!$B$9/'Modelo Atmosférico'!$B$10)*((POWER(D197/'Modelo Atmosférico'!$B$14,(-'Modelo Atmosférico'!$B$11*'Modelo Atmosférico'!$B$10)/('Modelo Atmosférico'!$B$12*'Modelo Atmosférico'!$B$13)))-1),0)","v":0},0]
[36.479999999999997,null,null,null,{"$f":"IF(D198<>0,('Modelo Atmosférico'!$B$9/'Modelo Atmosférico'!$B$10)*((POWER(D198/'Modelo Atmosférico'!$B$14,(-'Modelo Atmosférico'!$B$11*'Modelo Atmosférico'!$B$10)/('Modelo Atmosférico'!$B$12*'Modelo Atmosférico'!$B$13)))-1),0)","v":0},0]
[36.671999999999997,null,null,null,{"$f":"IF(D199<>0,('Modelo Atmosférico'!$B$9/'Modelo Atmosférico'!$B$10)*((POWER(D199/'Modelo Atmosférico'!$B$14,(-'Modelo Atmosférico'!$B$11*'Modelo Atmosférico'!$B$10)/('Modelo Atmosférico'!$B$12*'Modelo Atmosférico'!$B$13)))-1),0)","v":0},0]
[36.863999999999997,null,null,null,{"$f":"IF(D200<>0,('Modelo Atmosférico'!$B$9/'Modelo Atmosférico'!$B$10)*((POWER(D200/'Modelo Atmosférico'!$B$14,(-'Modelo Atmosférico'!$B$11*'Modelo Atmosférico'!$B$10)/('Modelo Atmosférico'!$B$12*'Modelo Atmosférico'!$B$13)))-1),0)","v":0},0]
[37.055999999999997,null,null,null,{"$f":"IF(D201<>0,('Modelo Atmosférico'!$B$9/'Modelo Atmosférico'!$B$10)*((POWER(D201/'Modelo Atmosférico'!$B$14,(-'Modelo Atmosférico'!$B$11*'Modelo Atmosférico'!$B$10)/('Modelo Atmosférico'!$B$12*'Modelo Atmosférico'!$B$13)))-1),0)","v":0},0]
[37.247999999999998,null,null,null,{"$f":"IF(D202<>0,('Modelo Atmosférico'!$B$9/'Modelo Atmosférico'!$B$10)*((POWER(D202/'Modelo Atmosférico'!$B$14,(-'Modelo Atmosférico'!$B$11*'Modelo Atmosférico'!$B$10)/('Modelo Atmosférico'!$B$12*'Modelo Atmosférico'!$B$13)))-1),0)","v":0},0]
[37.44,null,null,null,{"$f":"IF(D203<>0,('Modelo Atmosférico'!$B$9/'Modelo Atmosférico'!$B$10)*((POWER(D203/'Modelo Atmosférico'!$B$14,(-'Modelo Atmosférico'!$B$11*'Modelo Atmosférico'!$B$10)/('Modelo Atmosférico'!$B$12*'Modelo Atmosférico'!$B$13)))-1),0)","v":0},0]
[37.631999999999998,null,null,null,{"$f":"IF(D204<>0,('Modelo Atmosférico'!$B$9/'Modelo Atmosférico'!$B$10)*((POWER(D204/'Modelo Atmosférico'!$B$14,(-'Modelo Atmosférico'!$B$11*'Modelo Atmosférico'!$B$10)/('Modelo Atmosférico'!$B$12*'Modelo Atmosférico'!$B$13)))-1),0)","v":0},0]
[37.823999999999998,null,null,null,{"$f":"IF(D205<>0,('Modelo Atmosférico'!$B$9/'Modelo Atmosférico'!$B$10)*((POWER(D205/'Modelo Atmosférico'!$B$14,(-'Modelo Atmosférico'!$B$11*'Modelo Atmosférico'!$B$10)/('Modelo Atmosférico'!$B$12*'Modelo Atmosférico'!$B$13)))-1),0)","v":0},0]
[38.015999999999998,null,null,null,{"$f":"IF(D206<>0,('Modelo Atmosférico'!$B$9/'Modelo Atmosférico'!$B$10)*((POWER(D206/'Modelo Atmosférico'!$B$14,(-'Modelo Atmosférico'!$B$11*'Modelo Atmosférico'!$B$10)/('Modelo Atmosférico'!$B$12*'Modelo Atmosférico'!$B$13)))-1),0)","v":0},0]
[38.207999999999998,null,null,null,{"$f":"IF(D207<>0,('Modelo Atmosférico'!$B$9/'Modelo Atmosférico'!$B$10)*((POWER(D207/'Modelo Atmosférico'!$B$14,(-'Modelo Atmosférico'!$B$11*'Modelo Atmosférico'!$B$10)/('Modelo Atmosférico'!$B$12*'Modelo Atmosférico'!$B$13)))-1),0)","v":0},0]
[38.4,null,null,null,{"$f":"IF(D208<>0,('Modelo Atmosférico'!$B$9/'Modelo Atmosférico'!$B$10)*((POWER(D208/'Modelo Atmosférico'!$B$14,(-'Modelo Atmosférico'!$B$11*'Modelo Atmosférico'!$B$10)/('Modelo Atmosférico'!$B$12*'Modelo Atmosférico'!$B$13)))-1),0)","v":0},0]
[38.591999999999999,null,null,null,{"$f":"IF(D209<>0,('Modelo Atmosférico'!$B$9/'Modelo Atmosférico'!$B$10)*((POWER(D209/'Modelo Atmosférico'!$B$14,(-'Modelo Atmosférico'!$B$11*'Modelo Atmosférico'!$B$10)/('Modelo Atmosférico'!$B$12*'Modelo Atmosférico'!$B$13)))-1),0)","v":0},0]
[38.783999999999999,null,null,null,{"$f":"IF(D210<>0,('Modelo Atmosférico'!$B$9/'Modelo Atmosférico'!$B$10)*((POWER(D210/'Modelo Atmosférico'!$B$14,(-'Modelo Atmosférico'!$B$11*'Modelo Atmosférico'!$B$10)/('Modelo Atmosférico'!$B$12*'Modelo Atmosférico'!$B$13)))-1),0)","v":0},0]
[38.9759999999999,null,null,null,{"$f":"IF(D211<>0,('Modelo Atmosférico'!$B$9/'Modelo Atmosférico'!$B$10)*((POWER(D211/'Modelo Atmosférico'!$B$14,(-'Modelo Atmosférico'!$B$11*'Modelo Atmosférico'!$B$10)/('Modelo Atmosférico'!$B$12*'Modelo Atmosférico'!$B$13)))-1),0)","v":0},0]
[39.1679999999999,null,null,null,{"$f":"IF(D212<>0,('Modelo Atmosférico'!$B$9/'Modelo Atmosférico'!$B$10)*((POWER(D212/'Modelo Atmosférico'!$B$14,(-'Modelo Atmosférico'!$B$11*'Modelo Atmosférico'!$B$10)/('Modelo Atmosférico'!$B$12*'Modelo Atmosférico'!$B$13)))-1),0)","v":0},0]
[39.3599999999999,null,null,null,{"$f":"IF(D213<>0,('Modelo Atmosférico'!$B$9/'Modelo Atmosférico'!$B$10)*((POWER(D213/'Modelo Atmosférico'!$B$14,(-'Modelo Atmosférico'!$B$11*'Modelo Atmosférico'!$B$10)/('Modelo Atmosférico'!$B$12*'Modelo Atmosférico'!$B$13)))-1),0)","v":0},0]
[39.5519999999999,null,null,null,{"$f":"IF(D214<>0,('Modelo Atmosférico'!$B$9/'Modelo Atmosférico'!$B$10)*((POWER(D214/'Modelo Atmosférico'!$B$14,(-'Modelo Atmosférico'!$B$11*'Modelo Atmosférico'!$B$10)/('Modelo Atmosférico'!$B$12*'Modelo Atmosférico'!$B$13)))-1),0)","v":0},0]
[39.7439999999999,null,null,null,{"$f":"IF(D215<>0,('Modelo Atmosférico'!$B$9/'Modelo Atmosférico'!$B$10)*((POWER(D215/'Modelo Atmosférico'!$B$14,(-'Modelo Atmosférico'!$B$11*'Modelo Atmosférico'!$B$10)/('Modelo Atmosférico'!$B$12*'Modelo Atmosférico'!$B$13)))-1),0)","v":0},0]
[39.9359999999999,null,null,null,{"$f":"IF(D216<>0,('Modelo Atmosférico'!$B$9/'Modelo Atmosférico'!$B$10)*((POWER(D216/'Modelo Atmosférico'!$B$14,(-'Modelo Atmosférico'!$B$11*'Modelo Atmosférico'!$B$10)/('Modelo Atmosférico'!$B$12*'Modelo Atmosférico'!$B$13)))-1),0)","v":0},0]
[40.127999999999901,null,null,null,{"$f":"IF(D217<>0,('Modelo Atmosférico'!$B$9/'Modelo Atmosférico'!$B$10)*((POWER(D217/'Modelo Atmosférico'!$B$14,(-'Modelo Atmosférico'!$B$11*'Modelo Atmosférico'!$B$10)/('Modelo Atmosférico'!$B$12*'Modelo Atmosférico'!$B$13)))-1),0)","v":0},0]
[40.319999999999901,null,null,null,{"$f":"IF(D218<>0,('Modelo Atmosférico'!$B$9/'Modelo Atmosférico'!$B$10)*((POWER(D218/'Modelo Atmosférico'!$B$14,(-'Modelo Atmosférico'!$B$11*'Modelo Atmosférico'!$B$10)/('Modelo Atmosférico'!$B$12*'Modelo Atmosférico'!$B$13)))-1),0)","v":0},0]
[40.511999999999901,null,null,null,{"$f":"IF(D219<>0,('Modelo Atmosférico'!$B$9/'Modelo Atmosférico'!$B$10)*((POWER(D219/'Modelo Atmosférico'!$B$14,(-'Modelo Atmosférico'!$B$11*'Modelo Atmosférico'!$B$10)/('Modelo Atmosférico'!$B$12*'Modelo Atmosférico'!$B$13)))-1),0)","v":0},0]
[40.703999999999901,null,null,null,{"$f":"IF(D220<>0,('Modelo Atmosférico'!$B$9/'Modelo Atmosférico'!$B$10)*((POWER(D220/'Modelo Atmosférico'!$B$14,(-'Modelo Atmosférico'!$B$11*'Modelo Atmosférico'!$B$10)/('Modelo Atmosférico'!$B$12*'Modelo Atmosférico'!$B$13)))-1),0)","v":0},0]
[40.895999999999901,null,null,null,{"$f":"IF(D221<>0,('Modelo Atmosférico'!$B$9/'Modelo Atmosférico'!$B$10)*((POWER(D221/'Modelo Atmosférico'!$B$14,(-'Modelo Atmosférico'!$B$11*'Modelo Atmosférico'!$B$10)/('Modelo Atmosférico'!$B$12*'Modelo Atmosférico'!$B$13)))-1),0)","v":0},0]
[41.087999999999901,null,null,null,{"$f":"IF(D222<>0,('Modelo Atmosférico'!$B$9/'Modelo Atmosférico'!$B$10)*((POWER(D222/'Modelo Atmosférico'!$B$14,(-'Modelo Atmosférico'!$B$11*'Modelo Atmosférico'!$B$10)/('Modelo Atmosférico'!$B$12*'Modelo Atmosférico'!$B$13)))-1),0)","v":0},0]
[41.279999999999902,null,null,null,{"$f":"IF(D223<>0,('Modelo Atmosférico'!$B$9/'Modelo Atmosférico'!$B$10)*((POWER(D223/'Modelo Atmosférico'!$B$14,(-'Modelo Atmosférico'!$B$11*'Modelo Atmosférico'!$B$10)/('Modelo Atmosférico'!$B$12*'Modelo Atmosférico'!$B$13)))-1),0)","v":0},0]
[41.471999999999902,null,null,null,{"$f":"IF(D224<>0,('Modelo Atmosférico'!$B$9/'Modelo Atmosférico'!$B$10)*((POWER(D224/'Modelo Atmosférico'!$B$14,(-'Modelo Atmosférico'!$B$11*'Modelo Atmosférico'!$B$10)/('Modelo Atmosférico'!$B$12*'Modelo Atmosférico'!$B$13)))-1),0)","v":0},0]
[41.663999999999902,null,null,null,{"$f":"IF(D225<>0,('Modelo Atmosférico'!$B$9/'Modelo Atmosférico'!$B$10)*((POWER(D225/'Modelo Atmosférico'!$B$14,(-'Modelo Atmosférico'!$B$11*'Modelo Atmosférico'!$B$10)/('Modelo Atmosférico'!$B$12*'Modelo Atmosférico'!$B$13)))-1),0)","v":0},0]
[41.855999999999902,null,null,null,{"$f":"IF(D226<>0,('Modelo Atmosférico'!$B$9/'Modelo Atmosférico'!$B$10)*((POWER(D226/'Modelo Atmosférico'!$B$14,(-'Modelo Atmosférico'!$B$11*'Modelo Atmosférico'!$B$10)/('Modelo Atmosférico'!$B$12*'Modelo Atmosférico'!$B$13)))-1),0)","v":0},0]
[42.047999999999902,null,null,null,{"$f":"IF(D227<>0,('Modelo Atmosférico'!$B$9/'Modelo Atmosférico'!$B$10)*((POWER(D227/'Modelo Atmosférico'!$B$14,(-'Modelo Atmosférico'!$B$11*'Modelo Atmosférico'!$B$10)/('Modelo Atmosférico'!$B$12*'Modelo Atmosférico'!$B$13)))-1),0)","v":0},{"$f":"IF(D227<>0,E227-$E$3,0)","v":0}]
[42.239999999999903,null,null,null,{"$f":"IF(D228<>0,('Modelo Atmosférico'!$B$9/'Modelo Atmosférico'!$B$10)*((POWER(D228/'Modelo Atmosférico'!$B$14,(-'Modelo Atmosférico'!$B$11*'Modelo Atmosférico'!$B$10)/('Modelo Atmosférico'!$B$12*'Modelo Atmosférico'!$B$13)))-1),0)","v":0},0]
[42.431999999999903,null,null,null,{"$f":"IF(D229<>0,('Modelo Atmosférico'!$B$9/'Modelo Atmosférico'!$B$10)*((POWER(D229/'Modelo Atmosférico'!$B$14,(-'Modelo Atmosférico'!$B$11*'Modelo Atmosférico'!$B$10)/('Modelo Atmosférico'!$B$12*'Modelo Atmosférico'!$B$13)))-1),0)","v":0},0]
[42.623999999999903,null,null,null,{"$f":"IF(D230<>0,('Modelo Atmosférico'!$B$9/'Modelo Atmosférico'!$B$10)*((POWER(D230/'Modelo Atmosférico'!$B$14,(-'Modelo Atmosférico'!$B$11*'Modelo Atmosférico'!$B$10)/('Modelo Atmosférico'!$B$12*'Modelo Atmosférico'!$B$13)))-1),0)","v":0},0]
[42.815999999999903,null,null,null,{"$f":"IF(D231<>0,('Modelo Atmosférico'!$B$9/'Modelo Atmosférico'!$B$10)*((POWER(D231/'Modelo Atmosférico'!$B$14,(-'Modelo Atmosférico'!$B$11*'Modelo Atmosférico'!$B$10)/('Modelo Atmosférico'!$B$12*'Modelo Atmosférico'!$B$13)))-1),0)","v":0},0]
[43.007999999999903,null,null,null,{"$f":"IF(D232<>0,('Modelo Atmosférico'!$B$9/'Modelo Atmosférico'!$B$10)*((POWER(D232/'Modelo Atmosférico'!$B$14,(-'Modelo Atmosférico'!$B$11*'Modelo Atmosférico'!$B$10)/('Modelo Atmosférico'!$B$12*'Modelo Atmosférico'!$B$13)))-1),0)","v":0},0]
[43.199999999999903,null,null,null,{"$f":"IF(D233<>0,('Modelo Atmosférico'!$B$9/'Modelo Atmosférico'!$B$10)*((POWER(D233/'Modelo Atmosférico'!$B$14,(-'Modelo Atmosférico'!$B$11*'Modelo Atmosférico'!$B$10)/('Modelo Atmosférico'!$B$12*'Modelo Atmosférico'!$B$13)))-1),0)","v":0},0]
[43.391999999999904,null,null,null,{"$f":"IF(D234<>0,('Modelo Atmosférico'!$B$9/'Modelo Atmosférico'!$B$10)*((POWER(D234/'Modelo Atmosférico'!$B$14,(-'Modelo Atmosférico'!$B$11*'Modelo Atmosférico'!$B$10)/('Modelo Atmosférico'!$B$12*'Modelo Atmosférico'!$B$13)))-1),0)","v":0},0]
[43.583999999999897,null,null,null,{"$f":"IF(D235<>0,('Modelo Atmosférico'!$B$9/'Modelo Atmosférico'!$B$10)*((POWER(D235/'Modelo Atmosférico'!$B$14,(-'Modelo Atmosférico'!$B$11*'Modelo Atmosférico'!$B$10)/('Modelo Atmosférico'!$B$12*'Modelo Atmosférico'!$B$13)))-1),0)","v":0},0]
[43.775999999999897,null,null,null,{"$f":"IF(D236<>0,('Modelo Atmosférico'!$B$9/'Modelo Atmosférico'!$B$10)*((POWER(D236/'Modelo Atmosférico'!$B$14,(-'Modelo Atmosférico'!$B$11*'Modelo Atmosférico'!$B$10)/('Modelo Atmosférico'!$B$12*'Modelo Atmosférico'!$B$13)))-1),0)","v":0},0]
[43.967999999999897,null,null,null,{"$f":"IF(D237<>0,('Modelo Atmosférico'!$B$9/'Modelo Atmosférico'!$B$10)*((POWER(D237/'Modelo Atmosférico'!$B$14,(-'Modelo Atmosférico'!$B$11*'Modelo Atmosférico'!$B$10)/('Modelo Atmosférico'!$B$12*'Modelo Atmosférico'!$B$13)))-1),0)","v":0},0]
[44.159999999999897,null,null,null,{"$f":"IF(D238<>0,('Modelo Atmosférico'!$B$9/'Modelo Atmosférico'!$B$10)*((POWER(D238/'Modelo Atmosférico'!$B$14,(-'Modelo Atmosférico'!$B$11*'Modelo Atmosférico'!$B$10)/('Modelo Atmosférico'!$B$12*'Modelo Atmosférico'!$B$13)))-1),0)","v":0},0]
[44.351999999999897,null,null,null,{"$f":"IF(D239<>0,('Modelo Atmosférico'!$B$9/'Modelo Atmosférico'!$B$10)*((POWER(D239/'Modelo Atmosférico'!$B$14,(-'Modelo Atmosférico'!$B$11*'Modelo Atmosférico'!$B$10)/('Modelo Atmosférico'!$B$12*'Modelo Atmosférico'!$B$13)))-1),0)","v":0},0]
[44.543999999999897,null,null,null,{"$f":"IF(D240<>0,('Modelo Atmosférico'!$B$9/'Modelo Atmosférico'!$B$10)*((POWER(D240/'Modelo Atmosférico'!$B$14,(-'Modelo Atmosférico'!$B$11*'Modelo Atmosférico'!$B$10)/('Modelo Atmosférico'!$B$12*'Modelo Atmosférico'!$B$13)))-1),0)","v":0},0]
[44.735999999999898,null,null,null,{"$f":"IF(D241<>0,('Modelo Atmosférico'!$B$9/'Modelo Atmosférico'!$B$10)*((POWER(D241/'Modelo Atmosférico'!$B$14,(-'Modelo Atmosférico'!$B$11*'Modelo Atmosférico'!$B$10)/('Modelo Atmosférico'!$B$12*'Modelo Atmosférico'!$B$13)))-1),0)","v":0},0]
[44.927999999999898,null,null,null,{"$f":"IF(D242<>0,('Modelo Atmosférico'!$B$9/'Modelo Atmosférico'!$B$10)*((POWER(D242/'Modelo Atmosférico'!$B$14,(-'Modelo Atmosférico'!$B$11*'Modelo Atmosférico'!$B$10)/('Modelo Atmosférico'!$B$12*'Modelo Atmosférico'!$B$13)))-1),0)","v":0},0]
[45.119999999999898,null,null,null,{"$f":"IF(D243<>0,('Modelo Atmosférico'!$B$9/'Modelo Atmosférico'!$B$10)*((POWER(D243/'Modelo Atmosférico'!$B$14,(-'Modelo Atmosférico'!$B$11*'Modelo Atmosférico'!$B$10)/('Modelo Atmosférico'!$B$12*'Modelo Atmosférico'!$B$13)))-1),0)","v":0},0]
[45.311999999999898,null,null,null,{"$f":"IF(D244<>0,('Modelo Atmosférico'!$B$9/'Modelo Atmosférico'!$B$10)*((POWER(D244/'Modelo Atmosférico'!$B$14,(-'Modelo Atmosférico'!$B$11*'Modelo Atmosférico'!$B$10)/('Modelo Atmosférico'!$B$12*'Modelo Atmosférico'!$B$13)))-1),0)","v":0},0]
[45.503999999999898,null,null,null,{"$f":"IF(D245<>0,('Modelo Atmosférico'!$B$9/'Modelo Atmosférico'!$B$10)*((POWER(D245/'Modelo Atmosférico'!$B$14,(-'Modelo Atmosférico'!$B$11*'Modelo Atmosférico'!$B$10)/('Modelo Atmosférico'!$B$12*'Modelo Atmosférico'!$B$13)))-1),0)","v":0},0]
[45.695999999999898,null,null,null,{"$f":"IF(D246<>0,('Modelo Atmosférico'!$B$9/'Modelo Atmosférico'!$B$10)*((POWER(D246/'Modelo Atmosférico'!$B$14,(-'Modelo Atmosférico'!$B$11*'Modelo Atmosférico'!$B$10)/('Modelo Atmosférico'!$B$12*'Modelo Atmosférico'!$B$13)))-1),0)","v":0},0]
[45.887999999999899,null,null,null,{"$f":"IF(D247<>0,('Modelo Atmosférico'!$B$9/'Modelo Atmosférico'!$B$10)*((POWER(D247/'Modelo Atmosférico'!$B$14,(-'Modelo Atmosférico'!$B$11*'Modelo Atmosférico'!$B$10)/('Modelo Atmosférico'!$B$12*'Modelo Atmosférico'!$B$13)))-1),0)","v":0},0]
[46.079999999999899,null,null,null,{"$f":"IF(D248<>0,('Modelo Atmosférico'!$B$9/'Modelo Atmosférico'!$B$10)*((POWER(D248/'Modelo Atmosférico'!$B$14,(-'Modelo Atmosférico'!$B$11*'Modelo Atmosférico'!$B$10)/('Modelo Atmosférico'!$B$12*'Modelo Atmosférico'!$B$13)))-1),0)","v":0},0]